{"text_format":"1","workbook":"xlsx","n_sheets":5,"sheets":["Order form","Pricelist","Languages","LangBackup","Setup"],"not_rendered":{"charts":0,"images":1,"macros":1,"external_links":1,"defined_names":8,"comments":0,"pivot_tables":0},"unopened":[],"bounds":{"document_bytes":16777216,"sheet_cells":100000,"rows_first":2000,"rows_last":500,"rows_between":2000,"halvings":0,"cell_chars":16384,"cell_head_chars":4096},"cells_cut":0,"cells_raw":0,"read":"whole","date_system":"1900"}

{"sheet":"Order form","index":0,"n_rows":89,"n_cols":44,"rows_kept":89,"cut":false,"hidden":false,"merged":[[65,16,65,35],[69,16,69,35],[42,16,42,35],[70,16,70,35],[47,16,47,35],[66,16,66,35],[67,16,67,35],[68,16,68,35],[63,16,63,35],[64,16,64,35],[61,16,61,35],[62,16,62,35],[46,16,46,35],[54,27,54,28],[45,16,45,35],[56,16,56,35],[55,16,55,35],[60,16,60,35],[88,11,88,12],[81,1,86,35],[88,13,88,15],[88,7,88,10],[73,16,73,25],[73,31,73,33],[73,34,73,35],[73,26,73,30],[75,16,75,23],[75,24,75,25],[75,27,75,30],[75,31,75,33],[75,34,75,35],[88,25,88,35],[35,39,35,42],[50,16,50,35],[54,16,54,26],[59,16,59,35],[41,16,41,35],[43,16,43,35],[40,16,40,35],[44,16,44,35],[39,16,39,35],[38,16,38,35],[36,16,36,35],[37,16,37,35],[26,16,26,35],[24,27,24,35],[25,27,25,35],[21,16,21,35],[22,16,22,35],[23,16,23,35],[2,30,2,35],[2,12,2,27],[1,6,1,11],[1,30,1,35],[5,5,5,13],[5,18,5,25],[5,28,5,35],[6,5,6,13],[6,18,6,25],[6,28,6,35],[7,5,7,13],[8,5,8,13],[9,5,9,13],[10,5,10,13],[7,28,7,35],[8,28,8,35],[9,28,9,35],[10,28,10,35],[8,18,8,25],[9,18,9,25],[10,18,10,25],[13,5,13,13],[12,18,12,25],[13,18,13,25],[13,28,13,35],[12,5,12,13],[1,12,1,27],[7,18,7,25],[14,5,14,13],[14,28,14,35],[14,18,14,25],[15,1,15,35],[17,1,17,6],[11,5,11,13],[11,28,11,35],[11,18,11,25],[35,30,35,35],[35,27,35,29],[35,16,35,26],[33,16,33,35],[32,30,32,35],[17,7,17,34],[18,1,18,6],[30,16,30,35],[32,16,32,25],[25,16,25,25],[24,16,24,25],[27,16,27,35],[29,16,29,35],[28,16,28,35],[18,7,18,35],[31,16,31,35]]}
["ALFA20210318EN"]
[100,"La langue",null,null,null,null,"Français",null,null,null,null,null,"ALPHA MONTE-ESCALIER",null,null,null,null,null,null,null,null,null,null,null,null,null,null,null,"Date",null,{"$f":"TODAY()","v":"2022-01-24"}]
[110,null,null,null,null,null,null,null,null,null,null,null,"BON DE COMMANDE",null,null,null,null,null,null,null,null,null,null,null,null,null,null,null,"Version",null,"ALFA.LE.2021.A"]
[]
[null,null,null,null,null,null,null,null,null,null,null,null,null,null,"Distributeur:",null,null,null,null,null,null,null,null,null,null,null,"Adresse de livraison:"]
[120,"Company:",null,null,null,"Lehner Lifttechnik GmbH",null,null,null,null,null,null,null,null,"Société",null,null,null,null,null,null,null,null,null,null,null,"Société"]
[130,"Name:",null,null,null,"Max Lehner",null,null,null,null,null,null,null,null,"Name:",null,null,null,null,null,null,null,null,null,null,null,"Name:"]
[140,"Adress:",null,null,null,"Salling 8",null,null,null,null,null,null,null,null,"Adresse",null,null,null,null,null,null,null,null,null,null,null,"Adresse"]
[150,"Postcode:",null,null,null,"A - 4724",null,null,null,null,null,null,null,null,"Code postal",null,null,null,null,null,null,null,null,null,null,null,"Code postal"]
[160,"City:",null,null,null,"Neukirchen am Walde",null,null,null,null,null,null,null,null,"Ville",null,null,null,null,null,null,null,null,null,null,null,"Ville"]
[170,"Country:",null,null,null,"Austria",null,null,null,null,null,null,null,null,"Le pays",null,null,null,null,null,null,null,null,null,null,null,"Le pays"]
[180,"Phone no:",null,null,null,"+43 7278 3514-0",null,null,null,null,null,null,null,null,"Téléphone",null,null,null,null,null,null,null,null,null,null,null,"Téléphone"]
[190,"E-mail:",null,null,null,"office@lehnerlifttechnik.at",null,null,null,null,null,null,null,null,"Email"]
[200,"ID:",null,null,null,"ATU22360601",null,null,null,null,null,null,null,null,"ID:"]
[210,"VAT ID:",null,null,null,"ATU22360601",null,null,null,null,null,null,null,null,"VAT ID:"]
[220,"Adresse de ramassage: Spedition Englmayer, Wiesenstrasse 71, 4600 Wels, Austria"]
[]
[null,"Num. de production",null,null,null,null,null,"Nom de référence de la commande (ou numéro)"]
[230]
[]
[null,"Spécification de rail"]
[1000,"Lieu d'installation",null,null,null,null,null,null,null,null,null,null,null,null,null,null,"Intérieur"]
[1010,"Côté d'installation",null,null,null,null,null,null,null,null,null,null,null,null,null,null,"À gauche"]
[1020,"Longueur du rail en mètres arrondis",null,null,null,null,null,null,null,null,null,null,null,null,null,null,5]
[1030,"Arrêt inférieur",null,null,null,null,null,null,null,null,null,null,null,null,null,null,"Tout droit",null,null,null,null,null,null,null,null,null,null,{"$f":"IF(Q25=\"Départ droit avec dépassement du bas\",\"mm du premier pas à la fin du fauteuil\", \"\")","v":""}]
[1040,"Arrêt supérieur",null,null,null,null,null,null,null,null,null,null,null,null,null,null,"Droit à la dernière étape",null,null,null,null,null,null,null,null,null,null,{"$f":"IF(Q26=\"Débordement droit\",\"mm de la dernière étape à la fin du fauteuil\", \"\")","v":""}]
[1050,"Nombre de courbes à 90°",null,null,null,null,null,null,null,null,null,null,null,null,null,null,0]
[1060,"Nombre de courbes à 180°",null,null,null,null,null,null,null,null,null,null,null,null,null,null,0]
[1070,"Nombre de courbes spéciales",null,null,null,null,null,null,null,null,null,null,null,null,null,null,0]
[1080,"Nombre de courbes négatives",null,null,null,null,null,null,null,null,null,null,null,null,null,null,0,null,null,null,null,null,null,null,null,null,null,null,null,null,null,null,null,null,null,null,null,null,null,null,null,null,null,"90° outsidecurve instead of negative curve"]
[1090,"Nombre de courbures verticales",null,null,null,null,null,null,null,null,null,null,null,null,null,null,{"$f":"IF(OR(Q26=\"180° on top landing\",Q26=\"90° on top landing\",Q26=\"straight top overrun\",Q26=\"special curve on top landing\"),\"1\",\"0\")+IF(OR(Q25=\"straight with steep start\",Q25=\"straight start with bottom overrun\"),\"1\",\"0\")","v":0}]
[1100,"Nombre d'arrêts intermédiaires",null,null,null,null,null,null,null,null,null,null,null,null,null,null,0]
[1110,"Traitement de surface du rail",null,null,null,null,null,null,null,null,null,null,null,null,null,null,"RAL 7035",null,null,null,null,null,null,null,null,null,null,null,null,{"$f":"IF(ISNUMBER(FIND(\"Special\",Q33)),\"RAL:\",\"\")","v":""},null,null,null,null,null,null,null,null,{"$f":"IF(Q22=\"Extérieur\",\"N'oubliez pas de choisir le traitement de surface pour l'extérieur\", \"\")","v":""}]
[]
[null,"Les spécifications de conception"]
[1120,"Exécution",null,null,null,null,null,null,null,null,null,null,null,null,null,null,"Monte-escalier + rail (standard)",null,null,null,null,null,null,null,null,null,null,{"$f":"IF(Q36=\"Rail seulement\",\"Maquette:\", \"\")","v":""},null,null,null,null,null,null,null,null,null,null,{"$f":"IF(Q36=\"Rail seulement\",\"Veuillez indiquer la marque et le numéro LE si disponible\", \"\")","v":""},"Seat design execution",null,null,null,"Stannah rail only option deleted/ rail only used + model cell right"]
[1130,"Type de conception du siège",null,null,null,null,null,null,null,null,null,null,null,null,null,null,"Classic_Line",null,null,null,null,null,null,null,null,null,null,null,null,null,null,null,null,null,null,null,null,null,{"$f":"IF(Q22=\"Extérieur\",\"Pour l'extérieur, uniquement la ligne Classic Line avec tapisserie gris clair est possible\", \"\")","v":""},"Classic_Line","Premium_bois_brun_fonce","Premium_bois_brun_clair","Exklusive_Line"]
[1140,"Tapisserie",null,null,null,null,null,null,null,null,null,null,null,null,null,null,"Bleu",null,null,null,null,null,null,null,null,null,null,null,null,null,null,null,null,null,null,null,null,null,{"$f":"IF(Q22=\"Extérieur\",\"Pour l'extérieur, uniquement la ligne Classic Line avec tapisserie gris clair est possible\", \"\")","v":""},"Bleu","Bleu marine","Bleu marine","Olive (textile tissé)"]
[1150,"Repose-pied automatique",null,null,null,null,null,null,null,null,null,null,null,null,null,null,"Non",null,null,null,null,null,null,null,null,null,null,null,null,null,null,null,null,null,null,null,null,null,{"$f":"IF(Q22=\"Extérieur\",\"Pour l'extérieur, le respose pied automatique n'est pas possible\", \"\")","v":""},"Rouge","Vert émeraude","Vert émeraude","Granit (textile tissé)","Options wording changed"]
[1160,"Siège pivotant automatique",null,null,null,null,null,null,null,null,null,null,null,null,null,null,"Non",null,null,null,null,null,null,null,null,null,null,null,null,null,null,null,null,null,null,null,null,null,{"$f":"IF(Q22=\"Extérieur\",\"Pour l'extérieur, le siège automatique n'est pas possible\", \"\")","v":""},"Marron","Rouge rubis","Rouge rubis","Bordeaux (textile tissé)"]
[1170,"Plus grande distance d'accoudoir (+ 100mm)",null,null,null,null,null,null,null,null,null,null,null,null,null,null,"Non",null,null,null,null,null,null,null,null,null,null,null,null,null,null,null,null,null,null,null,null,null,null,"Vert","Blanc perle","Blanc perle","Marbre (textile tissé)"]
[1180,"Position du joystick",null,null,null,null,null,null,null,null,null,null,null,null,null,null,"Côté bas (standard)",null,null,null,null,null,null,null,null,null,null,null,null,null,null,null,null,null,null,null,null,null,null,"Beige","Marron","Marron","Ivoire (textile tissé)"]
[1500,"Type de joystick",null,null,null,null,null,null,null,null,null,null,null,null,null,null,"Joystick (standard)",null,null,null,null,null,null,null,null,null,null,null,null,null,null,null,null,null,null,null,null,null,{"$f":"IF(Q43=\"Ergo-Joystick (special)\",\"Disponible uniquement pour les lignes Classic et Premium\", \"\")","v":""},"Gris clair (imperméable)","Jaune safran","Jaune safran","Basalte (cuir artificiel)","New row for type of joystick(Ergo joystick as an option)"]
[1190,"Contrôles d'arrêt externes (toujours radio)",null,null,null,null,null,null,null,null,null,null,null,null,null,null,"Clavier à membrane (standard)",null,null,null,null,null,null,null,null,null,null,null,null,null,null,null,null,null,null,null,null,null,null,null,null,null,"Bourgogne (cuir artificiel)"]
[1200,"Type de clé",null,null,null,null,null,null,null,null,null,null,null,null,null,null,"Sans clé",null,null,null,null,null,null,null,null,null,null,null,null,null,null,null,null,null,null,null,null,null,null,null,null,null,"Moka (cuir artificiel)"]
[1210,"Nr. total de contrôle externe",null,null,null,null,null,null,null,null,null,null,null,null,null,null,2,null,null,null,null,null,null,null,null,null,null,null,null,null,null,null,null,null,null,null,null,null,null,null,null,null,"Crème (cuir artificiel)"]
[1220,"Position des contrôles externes",null,null,null,null,null,null,null,null,null,null,null,null,null,null,"Combiné"]
[1510,"Clé amovible",null,null,null,null,null,null,null,null,null,null,null,null,null,null,"Non",null,null,null,null,null,null,null,null,null,null,null,null,null,null,null,null,null,null,null,null,null,null,null,null,null,null,"New row for new option"]
[]
[null,"Autres options"]
[1230,"Housse plastique pour unité extérieur",null,null,null,null,null,null,null,null,null,null,null,null,null,null,{"$f":"IF(OR(Q22=\"Outdoor\",Q22=\"Im Außenbereich\",Q22=\"Extérieur\",Q22=\"Al aire libre\",Q22=\"All'aperto\"),\"Yes\",\"No\")","v":"No"},null,null,null,null,null,null,null,null,null,null,null,null,null,null,null,null,null,null,null,null,null,null,null,null,null,null,"formula adapted to be always on yes when outdoor is used."]
[null,0]
[null,0]
[null,0]
[1270,"Temps de garantie",null,null,null,null,null,null,null,null,null,null,null,null,null,null,24,null,null,null,null,null,null,null,null,null,null,null,null,"months"]
[1280,"Étiquette en acier inoxydable",null,null,null,null,null,null,null,null,null,null,null,null,null,null,"none"]
[1290,"Boîte de transport",null,null,null,null,null,null,null,null,null,null,null,null,null,null,"Q1 (standard)"]
[1300,0]
[1310,0]
[1320,"Temps de dessin urgent en jours ouvrables",null,null,null,null,null,null,null,null,null,null,null,null,null,null,"not specified"]
[1330,"Affichage de service",null,null,null,null,null,null,null,null,null,null,null,null,null,null,"Non"]
[1340,"Couvercle en plastique pour repose-pieds",null,null,null,null,null,null,null,null,null,null,null,null,null,null,"Non"]
[1350,"Version siège-debout (jusqu'à 120 kg)",null,null,null,null,null,null,null,null,null,null,null,null,null,null,"Non",null,null,null,null,null,null,null,null,null,null,null,null,null,null,null,null,null,null,null,null,null,null,null,null,null,null,"wording changed"]
[1360,"Batteries extra lourdes",null,null,null,null,null,null,null,null,null,null,null,null,null,null,{"$f":"IF(Q24>17,\"Yes\",\"No\")","v":"No"}]
[1370,"Capacité plus haut que 145 kg",null,null,null,null,null,null,null,null,null,null,null,null,null,null,"Non",null,null,null,null,null,null,null,null,null,null,null,null,null,null,null,null,null,null,null,null,null,null,null,null,null,null,"wording changed "]
[1390,"Rail relevable électrique",null,null,null,null,null,null,null,null,null,null,null,null,null,null,"Non",null,null,null,null,null,null,null,null,null,null,null,null,null,null,null,null,null,null,null,null,null,{"$f":"IF(Q22=\"Extérieur\",\"Pour l'extérieur, le Rail relevable électrique n'est pas possible\", \"\")","v":""}]
[1520,"  -20° rotation du siège",null,null,null,null,null,null,null,null,null,null,null,null,null,null,"Non",null,null,null,null,null,null,null,null,null,null,null,null,null,null,null,null,null,null,null,null,null,null,null,null,null,null,"nothing / minus 20° rotation for leaving and driving"]
[1530,"  +20° rotation du siège",null,null,null,null,null,null,null,null,null,null,null,null,null,null,"Non",null,null,null,null,null,null,null,null,null,null,null,null,null,null,null,null,null,null,null,null,null,null,null,null,null,null,"plus 20° rotation for upper stop yes or no"]
[1540,"90° rotación inversée",null,null,null,null,null,null,null,null,null,null,null,null,null,null,"Non",null,null,null,null,null,null,null,null,null,null,null,null,null,null,null,null,null,null,null,null,null,null,null,null,null,null,"90° opposite (downwards only) rotation for all stops"]
[1550,"Ceinture de sécurité de type H",null,null,null,null,null,null,null,null,null,null,null,null,null,null,"Non",null,null,null,null,null,null,null,null,null,null,null,null,null,null,null,null,null,null,null,null,null,null,null,null,null,null,"New row with new option"]
[1560,"Commande express - 10 jours de livraison",null,null,null,null,null,null,null,null,null,null,null,null,null,null,"Non",null,null,null,null,null,null,null,null,null,null,null,null,null,null,null,null,null,null,null,null,null,null,null,null,null,null,"New row with new option"]
[]
[null,"Structure de support"]
[1400,"Fixation des rails",null,null,null,null,null,null,null,null,null,null,null,null,null,null,"Dans les marches (standard)",null,null,null,null,null,null,null,null,null,{"$f":"IF(Q74=\"Pince de fixation sur les marches\",\"L'épaisseur des marches:\", \"\")","v":""},null,null,null,null,null,null,null,{"$f":"IF(Q74=\"Pince de fixation sur les marches\",\"mm\", \"\")","v":""},null,null,null,null,null,null,null,null,"Addtional information in cell AF 74 based on second option in Q74"]
[]
[1380,"Dimensions utilisateur facultatives",null,null,null,null,null,null,null,null,null,null,null,null,null,null,"Hauteur du siège à la tête:",null,null,null,null,null,null,null,null,null,"mm","Distance du dos aux genoux:",null,null,null,null,null,null,"mm",null,null,null,null,null,null,null,null,"This option is not new - it just moved to row 73; pillar specifications which were inclued are removed"]
[]
[]
[]
[null,"Information additionnelle"]
[]
[1420]
[]
[]
[]
[]
[]
[]
[240,"Date de livraison",null,null,null,null,null,"Semaine",null,null,null,null,null,2022,null,null,null,null,null,null,null,"Preparé par"]

{"sheet":"Pricelist","index":1,"n_rows":49,"n_cols":9,"rows_kept":49,"cut":false,"hidden":true,"merged":[[23,1,24,1],[25,1,26,1],[27,1,45,1],[1,2,1,6],[6,3,6,5],[15,1,18,1],[9,1,14,1],[19,1,22,1]]}
[null,"Price list","SA-ALFA",null,null,null,{"$f":"'Order form'!AE3","v":"ALFA.LE.2021.A"}]
[null,"Order reference name (or number)",{"$f":"'Order form'!H19","v":0}]
[null,"Customer (client):","Lehner Lifttechnik GmbH"]
[null,null,"Salling 8"]
[null,null,"A - 4724"]
[null,null,"Neukirchen am Walde"]
[null,null,"Item",null,null,null,"unit","EUR/unit","Price EUR"]
[null,"Basic price",{"$f":"IF(OR('Order form'!Q36=\"Stairlift + rail (standard)\",'Order form'!Q36=\"Stairlift only\"),\"Stairlift incl. 2 pcs of controls, standard, RAL 7035, manual folding\",\"Rail only\")","v":"Rail only"},{"$f":"IF(OR('Order form'!Q36=\"Stairlift + rail (standard)\",'Order form'!Q36=\"Stairlift only\"),1,0)","v":0},null,null,"pcs",{"$f":"'[1]Price list'!$C8","v":0},{"$f":"H8*D8","v":0}]
[null,"Location",{"$f":"'Order form'!Q22","v":"Intérieur"},{"$f":"IF('Order form'!Q22=\"outdoor\",1,0)","v":0},null,null,"pcs",{"$f":"'[1]Price list'!$C9","v":0},{"$f":"H9*D9","v":0}]
[null,"Rail","Total length of rails",{"$f":"'Order form'!Q24","v":5},null,null,"m",{"$f":"'[1]Price list'!$C10","v":0},{"$f":"H10*D10","v":0}]
[null,null,"Bends in vertical section for steep start or top overrun",{"$f":"'Order form'!Q31","v":0},null,null,"pcs",{"$f":"'[1]Price list'!$C11","v":0},0]
[null,null,"Extra pillars for controls",{"$f":"IF('Order form'!Q47=\"pillar-mounted\",'Order form'!Q46,0)","v":0},null,null,"pcs",{"$f":"'[1]Price list'!$C12","v":0},{"$f":"H12*D12","v":0}]
[null,null,"Clamp fixing on the steps",{"$f":"IF('Order form'!Q74=\"Clamp fixing on the steps\",D10,0)","v":0},null,null,"m",{"$f":"'[1]Price list'!$C13","v":0},{"$f":"H13*D13","v":0}]
[null,null,"Fixing on the wall",{"$f":"IF('Order form'!Q74=\"on the wall with supporting pillars\",D10,0)","v":0},null,null,"m",{"$f":"'[1]Price list'!$C14","v":0},{"$f":"H14*D14","v":0}]
[null,null,"Additional stop",{"$f":"IF('Order form'!Q32=\"0\",0,'Order form'!Q32)","v":0},null,null,"pcs",{"$f":"'[1]Price list'!$C15","v":0},0]
[null,"Curves","90° curve",{"$f":"'Order form'!Q27","v":0},null,null,"pcs",{"$f":"'[1]Price list'!$C16","v":0},0]
[null,null,"180° curve",{"$f":"'Order form'!Q28","v":0},null,null,"pcs",{"$f":"'[1]Price list'!$C17","v":0},0]
[null,null,"Special curve (nonstandard radius; each 90° or 3 m)",{"$f":"'Order form'!Q29","v":0},null,null,"pcs",{"$f":"'[1]Price list'!$C18","v":0},0]
[null,null,"Negative curve (each 90° or 3 m)",{"$f":"'Order form'!Q30","v":0},null,null,"pcs",{"$f":"'[1]Price list'!$C19","v":0},0]
[null,"Stairlift","Automatic footrest folding",{"$f":"IF('Order form'!Q39=\"No\",0,1)","v":1},null,null,"pcs",{"$f":"'[1]Price list'!$C20","v":0},0]
[null,null,"Automatic seat swivel",{"$f":"IF('Order form'!Q40=\"yes\",1,0)","v":0},null,null,"pcs",{"$f":"'[1]Price list'!$C21","v":0},{"$f":"H21*D21","v":0}]
[null,null,"Plastic cover",{"$f":"IF('Order form'!Q51=\"yes\",1,0)","v":0},null,null,"pcs",{"$f":"'[1]Price list'!$C22","v":0},0]
[null,null,"Seat design type Exclusive",{"$f":"IF('Order form'!Q37=\"Classic_line\",0,(IF(OR('Order form'!Q37=\"Premium_Line_light_brown_wood\",'Order form'!Q37=\"Premium_Line_dark_brown_wood\"),0.35,(IF('Order form'!Q37=\"Exclusive_line\",1)))))","v":0},null,null,"pcs",{"$f":"'[1]Price list'!$C23","v":0},0]
[null,"Controls","Radio controls with large push buttons (in compliance with EN81-40)",{"$f":"IF('Order form'!Q44=\"Big push buttons\",'Order form'!Q46,0)","v":0},null,null,"pcs",{"$f":"'[1]Price list'!$C24","v":0},0]
[null,null,"Extra control (2 pcs included in basic price)",{"$f":"IF('Order form'!Q46 = \"2 (standard)\",0,'Order form'!Q46-2)","v":0},null,null,"pcs",{"$f":"'[1]Price list'!$C25","v":0},0]
[null,"Surface treatment","Non-standard RAL color treatment",{"$f":"IF('Order form'!AD33=\"RAL:\",1,0)","v":0},null,null,"pcs",{"$f":"'[1]Price list'!$C26","v":0},0]
[null,null,"Zinc sprayed rail (outdoor treatment)",{"$f":"IF(OR('Order form'!Q33=\"zinc + Special RAL\",'Order form'!Q33=\"zinc + RAL 9007 (outdoor standard)\"),D10,0)","v":0},null,null,"m",{"$f":"'[1]Price list'!$C27","v":0},0]
[null,"Additional costs","Warranty (always fill out)",{"$f":"IF('Order form'!Q55=\"other\",'Order form'!AC55,'Order form'!Q55)","v":24},null,null,"months",{"$f":"'[1]Price list'!$C28","v":0},0]
[null,null,null,null,null,null,null,{"$f":"'[1]Price list'!$C29","v":0}]
[null,null,null,null,null,null,null,{"$f":"'[1]Price list'!$C30","v":0}]
[null,null,null,null,null,null,null,{"$f":"'[1]Price list'!$C31","v":0}]
[null,null,null,null,null,null,null,{"$f":"'[1]Price list'!$C32","v":0}]
[null,null,"Transport box",{"$f":"IF('Order form'!Q57=\"none\",0,1)","v":1},null,null,"pcs",{"$f":"'[1]Price list'!$C33","v":0},{"$f":"H33*D33","v":0}]
[null,null,"Drawing time urgency",{"$f":"IF('Order form'!Q60=\"not specified\",0,(IF('Order form'!Q60>9,\"1\",(IF('Order form'!Q60>6,\"2\",(IF('Order form'!Q60>3,\"3\",4)))))))","v":0},null,null,"pcs",{"$f":"'[1]Price list'!$C34","v":0},0]
[null,null,"Service display",{"$f":"IF('Order form'!Q61=\"yes\",1,0)","v":0},null,null,"pcs",{"$f":"'[1]Price list'!$C35","v":0},0]
[null,null,"Plastic cover for footplates",{"$f":"IF('Order form'!Q62=\"yes\",D10,0)","v":0},null,null,"pcs",{"$f":"'[1]Price list'!$C36","v":0},0]
[null,null,"Stand-up seat version (up to 120 kg)",{"$f":"IF('Order form'!Q63=\"yes\",1,0)","v":0},null,null,"pcs",{"$f":"'[1]Price list'!$C37","v":0},0]
[null,null,"Extra heavy batteries (12 Ah)",{"$f":"IF('Order form'!Q64=\"yes\",1,0)","v":0},null,null,"pcs",{"$f":"'[1]Price list'!$C38","v":0},0]
[null,null,"Automatic hinge rail",{"$f":"IF('Order form'!Q66=\"yes\",1,0)","v":0},null,null,"pcs",{"$f":"'[1]Price list'!$C39","v":0},{"$f":"H39*D39","v":0}]
[null,null," -20° seat rotation for lower stop + driving",{"$f":"IF('Order form'!Q67=\"yes\",1,0)","v":0},null,null,"pcs",{"$f":"'[1]Price list'!$C40","v":0},0]
[null,null," +20° seat rotation for upper stop",{"$f":"IF('Order form'!Q68=\"yes\",1,0)","v":0},null,null,"pcs",{"$f":"'[1]Price list'!$C41","v":0},0]
[null,null,"90° opposite rotation (downwards only) for all stops",{"$f":"IF('Order form'!Q69=\"yes\",1,0)","v":0},null,null,"pcs",{"$f":"'[1]Price list'!$C42","v":0},{"$f":"H42*D42","v":0}]
[null,null,"H-style seat belt",{"$f":"IF('Order form'!Q70=\"yes\",1,0)","v":0},null,null,"pcs",{"$f":"'[1]Price list'!$C43","v":0},0]
[null,null,"Ergo-Joystick",{"$f":"IF('Order form'!Q43=\"Ergo-Joystick (special)\",1,0)","v":0},null,null,"pcs",{"$f":"'[1]Price list'!$C44","v":0},{"$f":"H44*D44","v":0}]
[null,null,"Express order - 10 days delivery",{"$f":"IF('Order form'!Q70=\"yes\",1,0)","v":0},null,null,"pcs",{"$f":"'[1]Price list'!$C45","v":0},0]
[null,null,null,null,null,null,null,{"$f":"'[1]Price list'!$C46","v":0}]
[250,"Total price VAT excl.:",null,null,null,null,null,0,{"$f":"SUM(I8:I46)","v":0}]
[260,"Discount:",null,null,null,null,null,0,{"$f":"H48*I47","v":0}]
[270,null,null,null,null,null,null,null,{"$f":"I47-I48","v":0}]

{"sheet":"Languages","index":2,"n_rows":212,"n_cols":7,"rows_kept":212,"cut":false,"hidden":true,"merged":[]}
["Cell","Type","English","Deutsch","Français","Español","Italiano"]
[{"$f":"CELL(\"address\",'Order form'!M2)","v":"'[ALPHA_Order form_2022_EN.xlsm]Order form'!$M$2"},"Label","ALPHA STAIRLIFT","ALPHA TREPPENLIFT","ALPHA MONTE-ESCALIER","ALPHA SALVAESCALERA","ALPHA MONTASCALE"]
[{"$f":"CELL(\"address\",'Order form'!M3)","v":"'[ALPHA_Order form_2022_EN.xlsm]Order form'!$M$3"},"Label","ORDER FORM","BESTELLFORMULAR","BON DE COMMANDE","FORMULARIO DE PEDIDO","MODULO D'ORDINE"]
[{"$f":"CELL(\"address\",'Order form'!B2)","v":"'[ALPHA_Order form_2022_EN.xlsm]Order form'!$B$2"},"Label","Language","Sprache","La langue","Idioma","linguaggio"]
[{"$f":"CELL(\"address\",'Order form'!AC2)","v":"'[ALPHA_Order form_2022_EN.xlsm]Order form'!$AC$2"},"Label","Date","Datum","Date","Fecha","Data"]
[{"$f":"CELL(\"address\",'Order form'!AC3)","v":"'[ALPHA_Order form_2022_EN.xlsm]Order form'!$AC$3"},"Label","Version","Version","Version","Versión","Versione"]
[{"$f":"CELL(\"address\",'Order form'!O5)","v":"'[ALPHA_Order form_2022_EN.xlsm]Order form'!$O$5"},"Label","Distributor: (always fill out)","Händler: (immer ausfüllen)","Distributeur:","Distribuidor: (siempre llene)","Distributore: (compilare sempre)"]
[{"$f":"CELL(\"address\",'Order form'!AA5)","v":"'[ALPHA_Order form_2022_EN.xlsm]Order form'!$AA$5"},"Label","Delivery address: (always fill out)","Lieferadresse: (immer ausfüllen)","Adresse de livraison:","Dirección de entrega: (siempre completar)","Indirizzo di consegna: (compilare sempre)"]
[{"$f":"CELL(\"address\",'Order form'!O6)","v":"'[ALPHA_Order form_2022_EN.xlsm]Order form'!$O$6"},"Label","Company","Firma","Société","Empresa","Azienda"]
[{"$f":"CELL(\"address\",'Order form'!AA6)","v":"'[ALPHA_Order form_2022_EN.xlsm]Order form'!$AA$6"},"Label","Company","Firma","Société","Empresa","Azienda"]
[{"$f":"CELL(\"address\",'Order form'!O8)","v":"'[ALPHA_Order form_2022_EN.xlsm]Order form'!$O$8"},"Label","Address","Anschrift","Adresse","Dirección","Indirizzo"]
[{"$f":"CELL(\"address\",'Order form'!AA8)","v":"'[ALPHA_Order form_2022_EN.xlsm]Order form'!$AA$8"},"Label","Address","Anschrift","Adresse","Dirección","Indirizzo"]
[{"$f":"CELL(\"address\",'Order form'!O9)","v":"'[ALPHA_Order form_2022_EN.xlsm]Order form'!$O$9"},"Label","Postcode","PLZ","Code postal","Código postal","Codice postale"]
[{"$f":"CELL(\"address\",'Order form'!AA9)","v":"'[ALPHA_Order form_2022_EN.xlsm]Order form'!$AA$9"},"Label","Postcode","PLZ","Code postal","Código postal","Codice postale"]
[{"$f":"CELL(\"address\",'Order form'!O10)","v":"'[ALPHA_Order form_2022_EN.xlsm]Order form'!$O$10"},"Label","City","Stadt","Ville","Ciudad","Città"]
[{"$f":"CELL(\"address\",'Order form'!AA10)","v":"'[ALPHA_Order form_2022_EN.xlsm]Order form'!$AA$10"},"Label","City","Stadt","Ville","Ciudad","Città"]
[{"$f":"CELL(\"address\",'Order form'!O11)","v":"'[ALPHA_Order form_2022_EN.xlsm]Order form'!$O$11"},"Label","Country","Land","Le pays","País","Nazione"]
[{"$f":"CELL(\"address\",'Order form'!AA11)","v":"'[ALPHA_Order form_2022_EN.xlsm]Order form'!$AA$11"},"Label","Country","Land","Le pays","País","Nazione"]
[{"$f":"CELL(\"address\",'Order form'!O12)","v":"'[ALPHA_Order form_2022_EN.xlsm]Order form'!$O$12"},"Label","Telephone","Telefon","Téléphone","Téléfono","Telefono"]
[{"$f":"CELL(\"address\",'Order form'!AA12)","v":"'[ALPHA_Order form_2022_EN.xlsm]Order form'!$AA$12"},"Label","Telephone","Telefon","Téléphone","Téléfono","Telefono"]
[{"$f":"CELL(\"address\",'Order form'!B22)","v":"'[ALPHA_Order form_2022_EN.xlsm]Order form'!$B$22"},"Label","Installation location","Installationsort","Lieu d'installation","Ubicación de la instalación","Luogo di installazione"]
[{"$f":"CELL(\"address\",'Order form'!B23)","v":"'[ALPHA_Order form_2022_EN.xlsm]Order form'!$B$23"},"Label","Installation side","Montageseite","Côté d'installation","Lado de la instalación","Lato installazione"]
[{"$f":"CELL(\"address\",'Order form'!B16)","v":"'[ALPHA_Order form_2022_EN.xlsm]Order form'!$B$16"},"Label","Pick up address for lifts: Spedition Englmayer, Wiesenstrasse 71, 4600 Wels, Austria","ABHOLADRESSE: Spedition Englmayer, Wiesenstrasse 71, 4600 Wels, Austria","Adresse de ramassage: Spedition Englmayer, Wiesenstrasse 71, 4600 Wels, Austria","Dirección de recogida: Spedition Englmayer, Wiesenstrasse 71, 4600 Wels, Austria","Indirizzo di ritiro per ascensori: Spedition Englmayer, Wiesenstrasse 71, 4600 Wels, Austria"]
[{"$f":"CELL(\"address\",'Order form'!B18)","v":"'[ALPHA_Order form_2022_EN.xlsm]Order form'!$B$18"},"Label","Production No.","Produktionsnummer","Num. de production","No. de producción","Produzione n."]
[{"$f":"CELL(\"address\",'Order form'!H18)","v":"'[ALPHA_Order form_2022_EN.xlsm]Order form'!$H$18"},"Label","Order reference name (or number)","Auftragsreferenz (Name oder Nummer)","Nom de référence de la commande (ou numéro)","Nombre de referencia del pedido (o número)","Nome di riferimento dell'ordine (o numero)"]
[{"$f":"CELL(\"address\",'Order form'!B21)","v":"'[ALPHA_Order form_2022_EN.xlsm]Order form'!$B$21"},"Label","Rail specification","Schienenspezifikation","Spécification de rail","Especificación de la guia","Specifiche della guida"]
[{"$f":"CELL(\"address\",'Order form'!B24)","v":"'[ALPHA_Order form_2022_EN.xlsm]Order form'!$B$24"},"Label","Rail length in meters rounded","Schienenlänge (ungefähr in m)","Longueur du rail en mètres arrondis","Longitud de la guia en metros redondeados","Lunghezza della guida in metri arrotondata"]
[{"$f":"CELL(\"address\",'Order form'!B25)","v":"'[ALPHA_Order form_2022_EN.xlsm]Order form'!$B$25"},"Label","Lower stop","Untere Haltestelle","Arrêt inférieur","Parada inferior","Fermata inferiore"]
[{"$f":"CELL(\"address\",'Order form'!B26)","v":"'[ALPHA_Order form_2022_EN.xlsm]Order form'!$B$26"},"Label","Upper stop","Obere Haltestelle","Arrêt supérieur","Parada superior","Fermata superiore"]
[{"$f":"CELL(\"address\",'Order form'!B27)","v":"'[ALPHA_Order form_2022_EN.xlsm]Order form'!$B$27"},"Label","Number of 90° curves","Anzahl der 90° Innenkurven","Nombre de courbes à 90°","Número de curvas de 90 °","Numero di curve a 90 °"]
[{"$f":"CELL(\"address\",'Order form'!B28)","v":"'[ALPHA_Order form_2022_EN.xlsm]Order form'!$B$28"},"Label","Number of 180° curves","Anzahl der 180° Kurven","Nombre de courbes à 180°","Número de curvas de 180 °","Numero di curve a 180 °"]
[{"$f":"CELL(\"address\",'Order form'!B29)","v":"'[ALPHA_Order form_2022_EN.xlsm]Order form'!$B$29"},"Label","Number of special curves","Anzahl der Spezialkurven","Nombre de courbes spéciales","Número de curvas especiales","Numero di curve speciali"]
[{"$f":"CELL(\"address\",'Order form'!B30)","v":"'[ALPHA_Order form_2022_EN.xlsm]Order form'!$B$30"},"Label","Number of 90° outside curves","Anzahl der 90° Außenkurven","Nombre de courbes négatives","Número de curvas negativas","Numero di curve negative"]
[{"$f":"CELL(\"address\",'Order form'!B31)","v":"'[ALPHA_Order form_2022_EN.xlsm]Order form'!$B$31"},"Label","Number of vertical bends","Number of vertical bends","Nombre de courbures verticales","Número de curvas verticales","Numero di curve verticali"]
[{"$f":"CELL(\"address\",'Order form'!B32)","v":"'[ALPHA_Order form_2022_EN.xlsm]Order form'!$B$32"},"Label","Number of intermediate stops","Anzahl der Zwischenhaltestellen","Nombre d'arrêts intermédiaires","Número de paradas intermedias","Numero di fermate intermedie"]
[{"$f":"CELL(\"address\",'Order form'!B33)","v":"'[ALPHA_Order form_2022_EN.xlsm]Order form'!$B$33"},"Label","Rail surface treatment","Schienenfarbe","Traitement de surface du rail","Tratamiento de la superficie de la guia","Trattamento superficiale ferroviario"]
[{"$f":"CELL(\"address\",'Order form'!AB25)","v":"'[ALPHA_Order form_2022_EN.xlsm]Order form'!$AB$25"},"Formula","=IF(Q25=\"straight start with bottom overrun\",\"mm from first step to end of chair\", \"\")","=IF(Q25=\"Gerade mit horizontalem Auslauf\",\"mm von erster Stufe bis Ende Sitz\", \"\")","=IF(Q25=\"Départ droit avec dépassement du bas\",\"mm du premier pas à la fin du fauteuil\", \"\")","=IF(Q25=\"Recta con distancia al primer escalon\",\"mm desde el primer paso hasta el final de la silla\",\"\")","=IF(Q25=\"Dritto con distanza dal primo passo\",\"mm dal primo passo alla fine della sedia\",\"\")"]
[{"$f":"CELL(\"address\",'Order form'!AB26)","v":"'[ALPHA_Order form_2022_EN.xlsm]Order form'!$AB$26"},"Formula","=IF(Q26=\"straight top overrun\",\"mm from last step to end of chair\", \"\")","=IF(Q26=\"Gerader Überlauf\",\"mm von letzter Stufe bis Ende Sitz\", \"\")","=IF(Q26=\"Débordement droit\",\"mm de la dernière étape à la fin du fauteuil\", \"\")","=IF(Q26=\"Recta sobre el rellano superior\",\"mm desde el último paso hasta el final de la silla\",\"\")","=IF(Q26=\"Dritto al piano superiore\",\"mm dall'ultimo passaggio alla fine della sedia\",\"\")"]
[{"$f":"CELL(\"address\",'Order form'!AB36)","v":"'[ALPHA_Order form_2022_EN.xlsm]Order form'!$AB$36"},"Formula","=IF(Q36=\"Rail only\",\"Model:\", \"\")","=IF(Q36=\"Nur Schiene\",\"Modell:\", \"\")","=IF(Q36=\"Rail seulement\",\"Maquette:\", \"\")","=IF(Q36=\"Solo la guia tipo \",\"Modelo:\",\"\")","=IF(Q36=\"Solo guida tipo\",\"Modello:\",\"\")"]
[{"$f":"CELL(\"address\",'Order form'!Q22)","v":"'[ALPHA_Order form_2022_EN.xlsm]Order form'!$Q$22"},"Dropdown","Indoor","Innen","Intérieur","Interior","Interno"]
[{"$f":"CELL(\"address\",'Order form'!Q22)","v":"'[ALPHA_Order form_2022_EN.xlsm]Order form'!$Q$22"},"Dropdown","Outdoor","Im Außenbereich","Extérieur","Al aire libre","All'aperto"]
[{"$f":"CELL(\"address\",'Order form'!Q23)","v":"'[ALPHA_Order form_2022_EN.xlsm]Order form'!$Q$23"},"Dropdown","Left","Links","À gauche","Izquierda","Sinistra"]
[{"$f":"CELL(\"address\",'Order form'!Q23)","v":"'[ALPHA_Order form_2022_EN.xlsm]Order form'!$Q$23"},"Dropdown","Right","Rechts","À droite","Derecha","Destra"]
[{"$f":"CELL(\"address\",'Order form'!Q25)","v":"'[ALPHA_Order form_2022_EN.xlsm]Order form'!$Q$25"},"Dropdown","Straight","Gerade","Tout droit","Recta","Dritto"]
[{"$f":"CELL(\"address\",'Order form'!Q25)","v":"'[ALPHA_Order form_2022_EN.xlsm]Order form'!$Q$25"},"Dropdown","Straight with steep start","Gerade mit Steilstart","Droit avec début raide","Recta con comienzo empinado","Dritto con partenza ripida"]
[{"$f":"CELL(\"address\",'Order form'!Q25)","v":"'[ALPHA_Order form_2022_EN.xlsm]Order form'!$Q$25"},"Dropdown","Straight start with bottom overrun","Gerade mit horizontalem Auslauf","Départ droit avec dépassement du bas","Recta con distancia al primer escalon","Dritto con distanza dal primo passo"]
[{"$f":"CELL(\"address\",'Order form'!Q25)","v":"'[ALPHA_Order form_2022_EN.xlsm]Order form'!$Q$25"},"Dropdown","90°","90°","90°","90 °","90 °"]
[{"$f":"CELL(\"address\",'Order form'!Q25)","v":"'[ALPHA_Order form_2022_EN.xlsm]Order form'!$Q$25"},"Dropdown","180°","180°","180°","180 °","180 °"]
[{"$f":"CELL(\"address\",'Order form'!Q25)","v":"'[ALPHA_Order form_2022_EN.xlsm]Order form'!$Q$25"},"Dropdown","Special curve","Spezialkurve","Courbe spéciale","Curva especial","Curva speciale"]
[{"$f":"CELL(\"address\",'Order form'!Q26)","v":"'[ALPHA_Order form_2022_EN.xlsm]Order form'!$Q$26"},"Dropdown","Straight at last step","Gerade an letzter Stufe","Droit à la dernière étape","Directamente en el último paso","Dritto all'ultimo passaggio"]
[{"$f":"CELL(\"address\",'Order form'!Q26)","v":"'[ALPHA_Order form_2022_EN.xlsm]Order form'!$Q$26"},"Dropdown","Straight top overrun","Gerader Überlauf","Débordement droit","Recta sobre el rellano superior","Dritto al piano superiore"]
[{"$f":"CELL(\"address\",'Order form'!Q26)","v":"'[ALPHA_Order form_2022_EN.xlsm]Order form'!$Q$26"},"Dropdown","90° on top landing","90° auf oberem Podest","Arrêt supérieur à 90°","90 ° en el aterrizaje superior","90 ° sul piano superiore"]
[{"$f":"CELL(\"address\",'Order form'!Q26)","v":"'[ALPHA_Order form_2022_EN.xlsm]Order form'!$Q$26"},"Dropdown","180° on top landing","180° auf oberem Podest","Arrêt supérieur à 180°","180 ° en el aterrizaje superior","180 ° sul piano superiore"]
[{"$f":"CELL(\"address\",'Order form'!Q26)","v":"'[ALPHA_Order form_2022_EN.xlsm]Order form'!$Q$26"},"Dropdown","Special curve on top landing","Spezialkurve auf oberem Podest","Courbe spéciale sur le palier supérieur","Curva especial en el aterrizaje superior.","Curva speciale sull'atterraggio in alto"]
[{"$f":"CELL(\"address\",'Order form'!Q33)","v":"'[ALPHA_Order form_2022_EN.xlsm]Order form'!$Q$33"},"Dropdown","RAL 7035","RAL 7035","RAL 7035","RAL 7035","RAL 7035"]
[{"$f":"CELL(\"address\",'Order form'!Q33)","v":"'[ALPHA_Order form_2022_EN.xlsm]Order form'!$Q$33"},"Dropdown","RAL 9007","RAL 9007","RAL 9007","RAL 9007","RAL 9007"]
[{"$f":"CELL(\"address\",'Order form'!Q33)","v":"'[ALPHA_Order form_2022_EN.xlsm]Order form'!$Q$33"},"Dropdown","Special RAL","Special RAL","Special RAL","Special RAL","Special RAL"]
[{"$f":"CELL(\"address\",'Order form'!Q33)","v":"'[ALPHA_Order form_2022_EN.xlsm]Order form'!$Q$33"},"Dropdown","Zinc + RAL 9007 (outdoor standard)","Verzinkt + RAL 9007 (Außenanlage Std.)","Zinc + RAL 9007 (standard extérieur)","Zinc + RAL 9007 (estándar exterior)","Zinco + RAL 9007 (standard esterno)"]
[{"$f":"CELL(\"address\",'Order form'!Q33)","v":"'[ALPHA_Order form_2022_EN.xlsm]Order form'!$Q$33"},"Dropdown","Zinc + Special RAL","Verzinkt + Special RAL","Zinc + Special RAL","Zinc + Special RAL","Zinc + Special RAL"]
[{"$f":"CELL(\"address\",'Order form'!B35)","v":"'[ALPHA_Order form_2022_EN.xlsm]Order form'!$B$35"},"Label","Design specifications","Sitz Design Optionen","Les spécifications de conception","Especificaciones de diseño","Specifiche di design della sedia"]
[{"$f":"CELL(\"address\",'Order form'!B36)","v":"'[ALPHA_Order form_2022_EN.xlsm]Order form'!$B$36"},"Label","Execution","Ausführung","Exécution","Ejecución","Esecuzione"]
[{"$f":"CELL(\"address\",'Order form'!B37)","v":"'[ALPHA_Order form_2022_EN.xlsm]Order form'!$B$37"},"Label","Seat design type","Sitz Design Typ","Type de conception du siège","Tipo de diseño de asiento","Tipo di design del sedile"]
[{"$f":"CELL(\"address\",'Order form'!B38)","v":"'[ALPHA_Order form_2022_EN.xlsm]Order form'!$B$38"},"Label","Upholstery","Sitzfarbe","Tapisserie","Tapicería","Tappezzeria"]
[{"$f":"CELL(\"address\",'Order form'!B39)","v":"'[ALPHA_Order form_2022_EN.xlsm]Order form'!$B$39"},"Label","Automatic footrest folding","Automatisches Fußbrett","Repose-pied automatique","Reposapiés automatico","Piegamento poggiapiedi automatico"]
[{"$f":"CELL(\"address\",'Order form'!B40)","v":"'[ALPHA_Order form_2022_EN.xlsm]Order form'!$B$40"},"Label","Automatic seat swivel","Automatischer Drehsitz","Siège pivotant automatique","Asiento giratorio automático","Sedile automatico girevole"]
[{"$f":"CELL(\"address\",'Order form'!B41)","v":"'[ALPHA_Order form_2022_EN.xlsm]Order form'!$B$41"},"Label","Bigger armrest distance (+ 100mm)","Größere Armlehnendistanz (+ 100mm)","Plus grande distance d'accoudoir (+ 100mm)","Mayor distancia del reposabrazos (+ 100mm)","Più grande distanza del bracciolo (+ 100mm)"]
[{"$f":"CELL(\"address\",'Order form'!B42)","v":"'[ALPHA_Order form_2022_EN.xlsm]Order form'!$B$42"},"Label","Joystick position side","Joystickposition","Position du joystick","Lado del mando de joystick","Lato di posizione del joystick"]
[{"$f":"CELL(\"address\",'Order form'!B43)","v":"'[ALPHA_Order form_2022_EN.xlsm]Order form'!$B$43"},"Label","Type of Joystick","Joystick Typ","Type de joystick","Tipo de joystick","Tipo di joystick"]
[{"$f":"CELL(\"address\",'Order form'!B44)","v":"'[ALPHA_Order form_2022_EN.xlsm]Order form'!$B$44"},"Label","External landing controls (always radio)","Externe Landekontrollen (immer Radio)","Contrôles d'arrêt externes (toujours radio)","Controles de aterrizaje externos (siempre radio)","Comandi di atterraggio esterni (sempre radio)"]
[{"$f":"CELL(\"address\",'Order form'!B45)","v":"'[ALPHA_Order form_2022_EN.xlsm]Order form'!$B$45"},"Label","Type of key","Art des Schlüssels","Type de clé","Tipo de llave","Tipo di chiave"]
[{"$f":"CELL(\"address\",'Order form'!B46)","v":"'[ALPHA_Order form_2022_EN.xlsm]Order form'!$B$46"},"Label","Total no. of external landing controls","Anzahl Fernbedienungen gesamt","Nr. total de contrôle externe","Total no. de controles de aterrizaje externos","Totale n. di controlli di atterraggio esterni"]
[{"$f":"CELL(\"address\",'Order form'!B47)","v":"'[ALPHA_Order form_2022_EN.xlsm]Order form'!$B$47"},"Label","Postion of external controls","Stellung externer Kontrollen","Position des contrôles externes","Posicion de controles de aterrizaje externos","Posizione di controlli esterni"]
[{"$f":"CELL(\"address\",'Order form'!B48)","v":"'[ALPHA_Order form_2022_EN.xlsm]Order form'!$B$48"},"Label","Removing key in ON position","Schlüssel abziehbar ","Clé amovible","Extracción de llave en posición ON","Rimozione della chiave in posizione ON"]
[{"$f":"CELL(\"address\",'Order form'!Q36)","v":"'[ALPHA_Order form_2022_EN.xlsm]Order form'!$Q$36"},"Dropdown","Stairlift + rail (standard)","Kompletter Lift ","Monte-escalier + rail (standard)","Salvaescalera + guia (estándar)","Montascale + rail (standard)"]
[{"$f":"CELL(\"address\",'Order form'!Q36)","v":"'[ALPHA_Order form_2022_EN.xlsm]Order form'!$Q$36"},"Dropdown","Rail only","Nur Schiene","Rail seulement","Solo la guia tipo ","Solo guida tipo "]
[{"$f":"CELL(\"address\",'Order form'!AN38)","v":"'[ALPHA_Order form_2022_EN.xlsm]Order form'!$AN$38"},"Label","Blue","Blau","Bleu","Azul","Blu"]
[{"$f":"CELL(\"address\",'Order form'!AN39)","v":"'[ALPHA_Order form_2022_EN.xlsm]Order form'!$AN$39"},"Label","Red","Rot","Rouge","Rojo","Rosso"]
[{"$f":"CELL(\"address\",'Order form'!AN40)","v":"'[ALPHA_Order form_2022_EN.xlsm]Order form'!$AN$40"},"Label","Brown","Braun","Marron","Marrón","Marrone"]
[{"$f":"CELL(\"address\",'Order form'!AN41)","v":"'[ALPHA_Order form_2022_EN.xlsm]Order form'!$AN$41"},"Label","Green","Grün","Vert","Verde","Verde"]
[{"$f":"CELL(\"address\",'Order form'!AN42)","v":"'[ALPHA_Order form_2022_EN.xlsm]Order form'!$AN$42"},"Label","Beige","Beige","Beige","Beige","Beige"]
[{"$f":"CELL(\"address\",'Order form'!AN43)","v":"'[ALPHA_Order form_2022_EN.xlsm]Order form'!$AN$43"},"Label","Light gray (waterproof)","Hellgrau (wasserdicht)","Gris clair (imperméable)","Gris claro (impermeable)","Grigio chiaro (impermeabile)"]
[{"$f":"CELL(\"address\",'Order form'!AO38)","v":"'[ALPHA_Order form_2022_EN.xlsm]Order form'!$AO$38"},"Label","Marine blue","Marineblau","Bleu marine","Azul marino","Blu marino"]
[{"$f":"CELL(\"address\",'Order form'!AO39)","v":"'[ALPHA_Order form_2022_EN.xlsm]Order form'!$AO$39"},"Label","Emerald green","Smaragdgrün","Vert émeraude","Verde esmeralda","Verde smeraldo"]
[{"$f":"CELL(\"address\",'Order form'!AO40)","v":"'[ALPHA_Order form_2022_EN.xlsm]Order form'!$AO$40"},"Label","Ruby red","Rubinrot","Rouge rubis","Rojo rubí","Rosso rubino"]
[{"$f":"CELL(\"address\",'Order form'!AO41)","v":"'[ALPHA_Order form_2022_EN.xlsm]Order form'!$AO$41"},"Label","Pearl white","Perlweiss","Blanc perle","Perla blanca","Bianco perla"]
[{"$f":"CELL(\"address\",'Order form'!AO42)","v":"'[ALPHA_Order form_2022_EN.xlsm]Order form'!$AO$42"},"Label","Walnut brown","Kastanienbraun","Marron","Marrón nogal","Noce marrone"]
[{"$f":"CELL(\"address\",'Order form'!AO43)","v":"'[ALPHA_Order form_2022_EN.xlsm]Order form'!$AO$43"},"Label","Safran yellow","Safrangelb","Jaune safran","Safran amarillo","Giallo safran"]
[{"$f":"CELL(\"address\",'Order form'!AP38)","v":"'[ALPHA_Order form_2022_EN.xlsm]Order form'!$AP$38"},"Label","Marine blue","Marineblau","Bleu marine","Azul marino","Blu marino"]
[{"$f":"CELL(\"address\",'Order form'!AP39)","v":"'[ALPHA_Order form_2022_EN.xlsm]Order form'!$AP$39"},"Label","Emerald green","Smaragdgrün","Vert émeraude","Verde esmeralda","Verde smeraldo"]
[{"$f":"CELL(\"address\",'Order form'!AP40)","v":"'[ALPHA_Order form_2022_EN.xlsm]Order form'!$AP$40"},"Label","Ruby red","Rubinrot","Rouge rubis","Rojo rubí","Rosso rubino"]
[{"$f":"CELL(\"address\",'Order form'!AP41)","v":"'[ALPHA_Order form_2022_EN.xlsm]Order form'!$AP$41"},"Label","Pearl white","Perlweiss","Blanc perle","Perla blanca","Bianco perla"]
[{"$f":"CELL(\"address\",'Order form'!AP42)","v":"'[ALPHA_Order form_2022_EN.xlsm]Order form'!$AP$42"},"Label","Walnut brown","Walnussbraun","Marron","Marrón nogal","Noce marrone"]
[{"$f":"CELL(\"address\",'Order form'!AP43)","v":"'[ALPHA_Order form_2022_EN.xlsm]Order form'!$AP$43"},"Label","Safran yellow","Safrangelb","Jaune safran","Safran amarillo","Giallo safran"]
[{"$f":"CELL(\"address\",'Order form'!AQ38)","v":"'[ALPHA_Order form_2022_EN.xlsm]Order form'!$AQ$38"},"Label","Olive (woven textile)","Olive (Webstoff)","Olive (textile tissé)","Oliva (tejido textil)","Oliva (tessuto)"]
[{"$f":"CELL(\"address\",'Order form'!AQ39)","v":"'[ALPHA_Order form_2022_EN.xlsm]Order form'!$AQ$39"},"Label","Granite (woven textile)","Granit (Webstoff)","Granit (textile tissé)","Granito (tejido textil)","Granito (tessuto)"]
[{"$f":"CELL(\"address\",'Order form'!AQ40)","v":"'[ALPHA_Order form_2022_EN.xlsm]Order form'!$AQ$40"},"Label","Bordeaux (woven textile)","Bordeaux (Webstoff)","Bordeaux (textile tissé)","Burdeos (tejido textil)","Bordeaux (tessuto)"]
[{"$f":"CELL(\"address\",'Order form'!AQ41)","v":"'[ALPHA_Order form_2022_EN.xlsm]Order form'!$AQ$41"},"Label","Marble (woven textile)","Marmor (Webstoff)","Marbre (textile tissé)","Mármol (tejido textil)","Marmo (tessuto)"]
[{"$f":"CELL(\"address\",'Order form'!AQ42)","v":"'[ALPHA_Order form_2022_EN.xlsm]Order form'!$AQ$42"},"Label","Ivory (woven textile)","Elfenbein (Webstoff)","Ivoire (textile tissé)","Marfil (tejido textil)","Avorio (tessuto)"]
[{"$f":"CELL(\"address\",'Order form'!AQ43)","v":"'[ALPHA_Order form_2022_EN.xlsm]Order form'!$AQ$43"},"Label","Basalt (artificial leather)","Basalt (Kunstleder)","Basalte (cuir artificiel)","Basalto (cuero artificial)","Basalto (pelle sintetica)"]
[{"$f":"CELL(\"address\",'Order form'!AQ44)","v":"'[ALPHA_Order form_2022_EN.xlsm]Order form'!$AQ$44"},"Label","Burgundy (artificial leather)","Burgund (Kunstleder)","Bourgogne (cuir artificiel)","Borgoña (cuero artificial)","Borgogna (pelle sintetica)"]
[{"$f":"CELL(\"address\",'Order form'!AQ45)","v":"'[ALPHA_Order form_2022_EN.xlsm]Order form'!$AQ$45"},"Label","Mocha (artificial leather)","Mokka (Kunstleder)","Moka (cuir artificiel)","Mocha (cuero artificial)","Moka (pelle artificiale)"]
[{"$f":"CELL(\"address\",'Order form'!AQ46)","v":"'[ALPHA_Order form_2022_EN.xlsm]Order form'!$AQ$46"},"Label","Creme (artificial leather)","Creme (Kunstleder)","Crème (cuir artificiel)","Crema (cuero artificial)","Creme (pelle artificiale)"]
[{"$f":"CELL(\"address\",'Order form'!Q38)","v":"'[ALPHA_Order form_2022_EN.xlsm]Order form'!$Q$38"},"Switch","Blue","Blau","Bleu","Azul","Blu"]
[{"$f":"CELL(\"address\",'Order form'!Q38)","v":"'[ALPHA_Order form_2022_EN.xlsm]Order form'!$Q$38"},"Switch","Red","Rot","Rouge","Rojo","Rosso"]
[{"$f":"CELL(\"address\",'Order form'!Q38)","v":"'[ALPHA_Order form_2022_EN.xlsm]Order form'!$Q$38"},"Switch","Brown","Braun","Marron","Marrón","Marrone"]
[{"$f":"CELL(\"address\",'Order form'!Q38)","v":"'[ALPHA_Order form_2022_EN.xlsm]Order form'!$Q$38"},"Switch","Green","Grün","Vert","Verde","Verde"]
[{"$f":"CELL(\"address\",'Order form'!Q38)","v":"'[ALPHA_Order form_2022_EN.xlsm]Order form'!$Q$38"},"Switch","Beige","Beige","Beige","Beige","Beige"]
[{"$f":"CELL(\"address\",'Order form'!Q38)","v":"'[ALPHA_Order form_2022_EN.xlsm]Order form'!$Q$38"},"Switch","Light gray (waterproof)","Hellgrau (wasserdicht)","Gris clair (imperméable)","Gris claro (impermeable)","Grigio chiaro (impermeabile)"]
[{"$f":"CELL(\"address\",'Order form'!Q38)","v":"'[ALPHA_Order form_2022_EN.xlsm]Order form'!$Q$38"},"Switch","Marine blue","Marineblau","Bleu marine","Azul marino","Blu marino"]
[{"$f":"CELL(\"address\",'Order form'!Q38)","v":"'[ALPHA_Order form_2022_EN.xlsm]Order form'!$Q$38"},"Switch","Emerald green","Smaragdgrün","Vert émeraude","Verde esmeralda","Verde smeraldo"]
[{"$f":"CELL(\"address\",'Order form'!Q38)","v":"'[ALPHA_Order form_2022_EN.xlsm]Order form'!$Q$38"},"Switch","Ruby red","Rubinrot","Rouge rubis","Rojo rubí","Rosso rubino"]
[{"$f":"CELL(\"address\",'Order form'!Q38)","v":"'[ALPHA_Order form_2022_EN.xlsm]Order form'!$Q$38"},"Switch","Pearl white","Perlweiss","Blanc perle","Perla blanca","Bianco perla"]
[{"$f":"CELL(\"address\",'Order form'!Q38)","v":"'[ALPHA_Order form_2022_EN.xlsm]Order form'!$Q$38"},"Switch","Walnut brown","Kastanienbraun","Marron","Marrón nogal","Noce marrone"]
[{"$f":"CELL(\"address\",'Order form'!Q38)","v":"'[ALPHA_Order form_2022_EN.xlsm]Order form'!$Q$38"},"Switch","Safran yellow","Safrangelb","Jaune safran","Safran amarillo","Giallo safran"]
[{"$f":"CELL(\"address\",'Order form'!Q38)","v":"'[ALPHA_Order form_2022_EN.xlsm]Order form'!$Q$38"},"Switch","Olive (woven textile)","Olive (Webstoff)","Olive (textile tissé)","Oliva (tejido textil)","Oliva (tessuto)"]
[{"$f":"CELL(\"address\",'Order form'!Q38)","v":"'[ALPHA_Order form_2022_EN.xlsm]Order form'!$Q$38"},"Switch","Granite (woven textile)","Granit (Webstoff)","Granit (textile tissé)","Granito (tejido textil)","Granito (tessuto)"]
[{"$f":"CELL(\"address\",'Order form'!Q38)","v":"'[ALPHA_Order form_2022_EN.xlsm]Order form'!$Q$38"},"Switch","Bordeaux (woven textile)","Bordeaux (Webstoff)","Bordeaux (textile tissé)","Burdeos (tejido textil)","Bordeaux (tessuto)"]
[{"$f":"CELL(\"address\",'Order form'!Q38)","v":"'[ALPHA_Order form_2022_EN.xlsm]Order form'!$Q$38"},"Switch","Marble (woven textile)","Marmor (Webstoff)","Marbre (textile tissé)","Mármol (tejido textil)","Marmo (tessuto)"]
[{"$f":"CELL(\"address\",'Order form'!Q38)","v":"'[ALPHA_Order form_2022_EN.xlsm]Order form'!$Q$38"},"Switch","Ivory (woven textile)","Elfenbein (Webstoff)","Ivoire (textile tissé)","Marfil (tejido textil)","Avorio (tessuto)"]
[{"$f":"CELL(\"address\",'Order form'!Q38)","v":"'[ALPHA_Order form_2022_EN.xlsm]Order form'!$Q$38"},"Switch","Basalt (artificial leather)","Basalt (Kunstleder)","Basalte (cuir artificiel)","Basalto (cuero artificial)","Basalto (pelle sintetica)"]
[{"$f":"CELL(\"address\",'Order form'!Q38)","v":"'[ALPHA_Order form_2022_EN.xlsm]Order form'!$Q$38"},"Switch","Burgundy (artificial leather)","Burgund (Kunstleder)","Bourgogne (cuir artificiel)","Borgoña (cuero artificial)","Borgogna (pelle sintetica)"]
[{"$f":"CELL(\"address\",'Order form'!Q38)","v":"'[ALPHA_Order form_2022_EN.xlsm]Order form'!$Q$38"},"Switch","Mocha (artificial leather)","Mocca (Kunstleder)","Moka (cuir artificiel)","Mocha (cuero artificial)","Moka (pelle artificiale)"]
[{"$f":"CELL(\"address\",'Order form'!Q38)","v":"'[ALPHA_Order form_2022_EN.xlsm]Order form'!$Q$38"},"Switch","Creme (artificial leather)","Creme (Kunstleder)","Crème (cuir artificiel)","Crema (cuero artificial)","Creme (pelle artificiale)"]
[{"$f":"CELL(\"address\",'Order form'!Q39)","v":"'[ALPHA_Order form_2022_EN.xlsm]Order form'!$Q$39"},"Dropdown","No","Nein","Non","No","No"]
[{"$f":"CELL(\"address\",'Order form'!Q39)","v":"'[ALPHA_Order form_2022_EN.xlsm]Order form'!$Q$39"},"Dropdown","Yes - activated by switch in seat","Ja - Betätigt durch Schalter in Sitzbrett","Oui - activé par interrupteur dans le siège","Sí - se activa con un interruptor en el asiento","Sì - se activa con un interruptor en el asiento"]
[{"$f":"CELL(\"address\",'Order form'!Q39)","v":"'[ALPHA_Order form_2022_EN.xlsm]Order form'!$Q$39"},"Dropdown","Yes - activated by switch in armrest","Ja - Betätigt durch Schalter in Armlehne","Oui - activé par interrupteur dans l'accoudoir","Sí - se activa con un interruptor en el reposabrazos","Sì - se activa con un interruptor en el reposabrazos"]
[{"$f":"CELL(\"address\",'Order form'!Q40)","v":"'[ALPHA_Order form_2022_EN.xlsm]Order form'!$Q$40"},"Dropdown","Yes","Ja","Oui","Sí","Sì"]
[{"$f":"CELL(\"address\",'Order form'!Q40)","v":"'[ALPHA_Order form_2022_EN.xlsm]Order form'!$Q$40"},"Dropdown","No","Nein","Non","No","No"]
[{"$f":"CELL(\"address\",'Order form'!Q41)","v":"'[ALPHA_Order form_2022_EN.xlsm]Order form'!$Q$41"},"Dropdown","Yes","Ja","Oui","Sí","Sì"]
[{"$f":"CELL(\"address\",'Order form'!Q41)","v":"'[ALPHA_Order form_2022_EN.xlsm]Order form'!$Q$41"},"Dropdown","No","Nein","Non","No","No"]
[{"$f":"CELL(\"address\",'Order form'!Q42)","v":"'[ALPHA_Order form_2022_EN.xlsm]Order form'!$Q$42"},"Dropdown","On downstairs side (standard)","Talseitig (Standard)","Côté bas (standard)","En el lado de abajo (estándar)","Al piano di sotto (standard)"]
[{"$f":"CELL(\"address\",'Order form'!Q42)","v":"'[ALPHA_Order form_2022_EN.xlsm]Order form'!$Q$42"},"Dropdown","On upstairs side (optional)","Bergseitig","Du côté de l'étage (facultatif)","En el lado de arriba (opcional)","Al piano di sopra (opzionale)"]
[{"$f":"CELL(\"address\",'Order form'!Q43)","v":"'[ALPHA_Order form_2022_EN.xlsm]Order form'!$Q$43"},"Dropdown","Joystick (standard)","Joystick (Standard)","Joystick (standard)","Joystick (standard)","Joystick (standard)"]
[{"$f":"CELL(\"address\",'Order form'!Q43)","v":"'[ALPHA_Order form_2022_EN.xlsm]Order form'!$Q$43"},"Dropdown","Ergo-Joystick (special)","Ergo-Joystick (Spezial)","Ergo-Joystick (special)","Ergo-Joystick (special)","Ergo-Joystick (special)"]
[{"$f":"CELL(\"address\",'Order form'!Q44)","v":"'[ALPHA_Order form_2022_EN.xlsm]Order form'!$Q$44"},"Dropdown","Membrane keypad (standard)","Folientastatur (Standard)","Clavier à membrane (standard)","Teclado de membrana (estándar)","Tastiera a membrana (standard)"]
[{"$f":"CELL(\"address\",'Order form'!Q44)","v":"'[ALPHA_Order form_2022_EN.xlsm]Order form'!$Q$44"},"Dropdown","Big push buttons","Großer Taster","Gros boutons poussoirs","Grandes pulsadores","Grandi pulsanti"]
[{"$f":"CELL(\"address\",'Order form'!Q45)","v":"'[ALPHA_Order form_2022_EN.xlsm]Order form'!$Q$45"},"Dropdown","Without key","Ohne Schlüssel","Sans clé","Sin llave","Senza chiave"]
[{"$f":"CELL(\"address\",'Order form'!Q45)","v":"'[ALPHA_Order form_2022_EN.xlsm]Order form'!$Q$45"},"Dropdown","Mini key","Minischlüssel","Mini clé","Mini llave","Mini chiave"]
[{"$f":"CELL(\"address\",'Order form'!Q47)","v":"'[ALPHA_Order form_2022_EN.xlsm]Order form'!$Q$47"},"Dropdown","Handset","Handkassette","Combiné","Auricular","Handset"]
[{"$f":"CELL(\"address\",'Order form'!Q47)","v":"'[ALPHA_Order form_2022_EN.xlsm]Order form'!$Q$47"},"Dropdown","Wall-mounted","Wandmontiert","Mural","Montado en la pared","Montaggio a parete"]
[{"$f":"CELL(\"address\",'Order form'!Q47)","v":"'[ALPHA_Order form_2022_EN.xlsm]Order form'!$Q$47"},"Dropdown","Pillar-mounted","Stützenmontiert","Monté sur poteau","Montado en pilar","Pilastro montato"]
[{"$f":"CELL(\"address\",'Order form'!Q48)","v":"'[ALPHA_Order form_2022_EN.xlsm]Order form'!$Q$48"},"Dropdown","No","Nein","Non","No","No"]
[{"$f":"CELL(\"address\",'Order form'!Q48)","v":"'[ALPHA_Order form_2022_EN.xlsm]Order form'!$Q$48"},"Dropdown","Yes","Ja","Oui","Sí","Sì"]
[]
[]
[{"$f":"CELL(\"address\",'Order form'!B50)","v":"'[ALPHA_Order form_2022_EN.xlsm]Order form'!$B$50"},"Label","Further options","Zusätzliche Optionen","Autres options","Otras opciones","Ulteriori opzioni"]
[{"$f":"CELL(\"address\",'Order form'!B51)","v":"'[ALPHA_Order form_2022_EN.xlsm]Order form'!$B$51"},"Label","Plastic cover for outdoor stairlift","Plastikabdeckung für Außenanlage","Housse plastique pour unité extérieur","Cubierta de plástico para elevador al aire libre","Copertura in plastica per montascale esterno"]
[{"$f":"CELL(\"address\",'Order form'!B55)","v":"'[ALPHA_Order form_2022_EN.xlsm]Order form'!$B$55"},"Label","Warranty time","Warranty time","Temps de garantie","Tiempo de garantia","Tempo di garanzia"]
[{"$f":"CELL(\"address\",'Order form'!B56)","v":"'[ALPHA_Order form_2022_EN.xlsm]Order form'!$B$56"},"Label","Stainless steel label","Stainless steel label","Étiquette en acier inoxydable","Etiqueta de acero inoxidable","Etichetta in acciaio inossidabile"]
[{"$f":"CELL(\"address\",'Order form'!B57)","v":"'[ALPHA_Order form_2022_EN.xlsm]Order form'!$B$57"},"Label","Transport box","Transportbox","Boîte de transport","Caja de transporte","Scatola di trasporto"]
[{"$f":"CELL(\"address\",'Order form'!B60)","v":"'[ALPHA_Order form_2022_EN.xlsm]Order form'!$B$60"},"Label","Drawing time urgency in working days","Drawing time urgency in days","Temps de dessin urgent en jours ouvrables","Tiempo de dibujo de urgencia en días ","Urgenza del tempo di disegno in giorni lavorativi"]
[{"$f":"CELL(\"address\",'Order form'!B61)","v":"'[ALPHA_Order form_2022_EN.xlsm]Order form'!$B$61"},"Label","Service display","Service display","Affichage de service","Pantalla de servicio","Display di servizio"]
[{"$f":"CELL(\"address\",'Order form'!B62)","v":"'[ALPHA_Order form_2022_EN.xlsm]Order form'!$B$62"},"Label","Plastic cover for footplates","Kunststoffabdeckung für Stützenfüße","Couvercle en plastique pour repose-pieds","Tapas de plástico para reposapiés","Rivestimento in plastica per pedane"]
[{"$f":"CELL(\"address\",'Order form'!B63)","v":"'[ALPHA_Order form_2022_EN.xlsm]Order form'!$B$63"},"Label","Stand-up version (up to 120 kg)","Stehsitz Variante (bis zu 120 kg)","Version siège-debout (jusqu'à 120 kg)","Versión de asiento para ir de pie","Versione per sedile rialzato (fino a 120 kg)"]
[{"$f":"CELL(\"address\",'Order form'!B65)","v":"'[ALPHA_Order form_2022_EN.xlsm]Order form'!$B$65"},"Label","Higher loading capacity of 145kg","Traglasterhöhung auf 145kg","Capacité plus haut que 145 kg","Mayor capacidad de carga de 145kg.","Maggiore capacità di carico di 145 kg"]
[{"$f":"CELL(\"address\",'Order form'!B76)","v":"'[ALPHA_Order form_2022_EN.xlsm]Order form'!$B$76"},"Label","Optional user dimensions","Benutzergröße (optional)","Dimensions utilisateur facultatives","Dimensiones de usuario opcionales","Dimensioni utente facoltative"]
[{"$f":"CELL(\"address\",'Order form'!B64)","v":"'[ALPHA_Order form_2022_EN.xlsm]Order form'!$B$64"},"Label","Extra heavy batteries","Extra starke Batterien","Batteries extra lourdes","Baterías extra pesadas","Batterie extra pesanti"]
[{"$f":"CELL(\"address\",'Order form'!B66)","v":"'[ALPHA_Order form_2022_EN.xlsm]Order form'!$B$66"},"Label","Automatic hinge rail","Automatische Klappschiene","Rail relevable électrique","Guia abatible","Cerniera automatica"]
[{"$f":"CELL(\"address\",'Order form'!B67)","v":"'[ALPHA_Order form_2022_EN.xlsm]Order form'!$B$67"},"Label"," -20° seat rotation for lower stop + driving"," -20° Sitzrotation für untere HS und Fahrt","  -20° rotation du siège"," -20° rotación del asiento"," -20° rotazione del sedile"]
[{"$f":"CELL(\"address\",'Order form'!B68)","v":"'[ALPHA_Order form_2022_EN.xlsm]Order form'!$B$68"},"Label"," +20° seat rotation for upper stop"," +20° Sitzrotation für obere Haltestelle","  +20° rotation du siège"," +20° rotación del asiento"," +20° rotazione del sedile"]
[{"$f":"CELL(\"address\",'Order form'!B69)","v":"'[ALPHA_Order form_2022_EN.xlsm]Order form'!$B$69"},"Label","90° opposite rotation (downwards only) for all stops","90° gedrehte Sitzrotation nach unten","90° rotación inversée","90° rotación invertida","90° rotazione del sedile invertita"]
[{"$f":"CELL(\"address\",'Order form'!Q76)","v":"'[ALPHA_Order form_2022_EN.xlsm]Order form'!$Q$76"},"Label","Height from seat to head:","Maß Sitz bis Kopf","Hauteur du siège à la tête:","Altura entre asiento - cabeza:","Altezza dal sedile alla testa:"]
[{"$f":"CELL(\"address\",'Order form'!AB76)","v":"'[ALPHA_Order form_2022_EN.xlsm]Order form'!$AB$76"},"Label","Distance from back to knees:","Maß Rücken bis Knie","Distance du dos aux genoux:","Distancia espalda - rodillas:","Distanza schiena - ginocchia:"]
[{"$f":"CELL(\"address\",'Order form'!B70)","v":"'[ALPHA_Order form_2022_EN.xlsm]Order form'!$B$70"},"Label","H-style seat belt","Sitz Sicherheitsgurt Typ H","Ceinture de sécurité de type H","Cinturón de seguridad estilo H","Cintura di sicurezza ad H"]
[{"$f":"CELL(\"address\",'Order form'!B71)","v":"'[ALPHA_Order form_2022_EN.xlsm]Order form'!$B$71"},"Label","Express order - 10 days delivery","Expressbestellung - 10 Tage Lieferzeit","Commande express - 10 jours de livraison","Pedido urgente - 10 días de entrega","Ordine espresso - 10 giorni di consegna"]
[{"$f":"CELL(\"address\",'Order form'!Q61)","v":"'[ALPHA_Order form_2022_EN.xlsm]Order form'!$Q$61"},"Dropdown","Yes","Ja","Oui","Sí","Sì"]
[{"$f":"CELL(\"address\",'Order form'!Q61)","v":"'[ALPHA_Order form_2022_EN.xlsm]Order form'!$Q$61"},"Dropdown","No","Nein","Non","No","No"]
[{"$f":"CELL(\"address\",'Order form'!Q62)","v":"'[ALPHA_Order form_2022_EN.xlsm]Order form'!$Q$62"},"Dropdown","Yes","Ja","Oui","Sí","Sì"]
[{"$f":"CELL(\"address\",'Order form'!Q62)","v":"'[ALPHA_Order form_2022_EN.xlsm]Order form'!$Q$62"},"Dropdown","No","Nein","Non","No","No"]
[{"$f":"CELL(\"address\",'Order form'!Q63)","v":"'[ALPHA_Order form_2022_EN.xlsm]Order form'!$Q$63"},"Dropdown","Yes","Ja","Oui","Sí","Sì"]
[{"$f":"CELL(\"address\",'Order form'!Q63)","v":"'[ALPHA_Order form_2022_EN.xlsm]Order form'!$Q$63"},"Dropdown","No","Nein","Non","No","No"]
[{"$f":"CELL(\"address\",'Order form'!Q65)","v":"'[ALPHA_Order form_2022_EN.xlsm]Order form'!$Q$65"},"Dropdown","Yes","Ja","Oui","Sí","Sì"]
[{"$f":"CELL(\"address\",'Order form'!Q65)","v":"'[ALPHA_Order form_2022_EN.xlsm]Order form'!$Q$65"},"Dropdown","No","Nein","Non","No","No"]
[{"$f":"CELL(\"address\",'Order form'!Q66)","v":"'[ALPHA_Order form_2022_EN.xlsm]Order form'!$Q$66"},"Dropdown","Yes","Ja","Oui","Sí","Sì"]
[{"$f":"CELL(\"address\",'Order form'!Q66)","v":"'[ALPHA_Order form_2022_EN.xlsm]Order form'!$Q$66"},"Dropdown","No","Nein","Non","No","No"]
[{"$f":"CELL(\"address\",'Order form'!Q67)","v":"'[ALPHA_Order form_2022_EN.xlsm]Order form'!$Q$67"},"Dropdown","Yes","Ja","Oui","Sí","Sì"]
[{"$f":"CELL(\"address\",'Order form'!Q67)","v":"'[ALPHA_Order form_2022_EN.xlsm]Order form'!$Q$67"},"Dropdown","No","Nein","Non","No","No"]
[{"$f":"CELL(\"address\",'Order form'!Q68)","v":"'[ALPHA_Order form_2022_EN.xlsm]Order form'!$Q$68"},"Dropdown","Yes","Ja","Oui","Sí","Sì"]
[{"$f":"CELL(\"address\",'Order form'!Q68)","v":"'[ALPHA_Order form_2022_EN.xlsm]Order form'!$Q$68"},"Dropdown","No","Nein","Non","No","No"]
[{"$f":"CELL(\"address\",'Order form'!Q69)","v":"'[ALPHA_Order form_2022_EN.xlsm]Order form'!$Q$69"},"Dropdown","Yes","Ja","Oui","Sí","Sì"]
[{"$f":"CELL(\"address\",'Order form'!Q69)","v":"'[ALPHA_Order form_2022_EN.xlsm]Order form'!$Q$69"},"Dropdown","No","Nein","Non","No","No"]
[{"$f":"CELL(\"address\",'Order form'!Q70)","v":"'[ALPHA_Order form_2022_EN.xlsm]Order form'!$Q$70"},"Dropdown","Yes","Ja","Oui","Sí","Sì"]
[{"$f":"CELL(\"address\",'Order form'!Q70)","v":"'[ALPHA_Order form_2022_EN.xlsm]Order form'!$Q$70"},"Dropdown","No","Nein","Non","No","No"]
[{"$f":"CELL(\"address\",'Order form'!Q71)","v":"'[ALPHA_Order form_2022_EN.xlsm]Order form'!$Q$71"},"Dropdown","No","Nein","Non","No","No"]
[{"$f":"CELL(\"address\",'Order form'!Q71)","v":"'[ALPHA_Order form_2022_EN.xlsm]Order form'!$Q$71"},"Dropdown","Yes (with surcharge)","Ja (mit Aufpreis)","Oui (avec supplément)","Sí (con recargo)","Sì (con supplemento)"]
[{"$f":"CELL(\"address\",'Order form'!B73)","v":"'[ALPHA_Order form_2022_EN.xlsm]Order form'!$B$73"},"Label","Supporting structure","Art der Befestigung","Structure de support","Estructura de soporte","Struttura di supporto"]
[{"$f":"CELL(\"address\",'Order form'!B74)","v":"'[ALPHA_Order form_2022_EN.xlsm]Order form'!$B$74"},"Label","Fixing of the rails","Fixierung der Schiene","Fixation des rails","Fijación de la guias","Fissaggio della guida"]
[{"$f":"CELL(\"address\",'Order form'!AA74)","v":"'[ALPHA_Order form_2022_EN.xlsm]Order form'!$AA$74"},"Formula","=IF(Q74=\"Clamp fixing on the steps\",\"Thickness of steps:\", \"\")","=IF(Q74=\"Mit Klemmen an die Treppe\",\"Dicke der Stufen:\", \"\")","=IF(Q74=\"Pince de fixation sur les marches\",\"L'épaisseur des marches:\", \"\")","=IF(Q74=\"Fijación de la abrazadera en los escalones\",\"El grosor de los escalones:\", \"\")","=IF(Q74=\"Morsetto di fissaggio sui gradini\",\"Spessore dei gradini:\", \"\")"]
[{"$f":"CELL(\"address\",'Order form'!AI74)","v":"'[ALPHA_Order form_2022_EN.xlsm]Order form'!$AI$74"},"Formula","=IF(Q74=\"Clamp fixing on the steps\",\"mm\", \"\")","=IF(Q74=\"Mit Klemmen an die Treppe\",\"mm\", \"\")","=IF(Q74=\"Pince de fixation sur les marches\",\"mm\", \"\")","=IF(Q74=\"Fijación de la abrazadera en los escalones\",\"mm\", \"\")","=IF(Q74=\"Morsetto di fissaggio sui gradini\",\"mm\", \"\")"]
[{"$f":"CELL(\"address\",'Order form'!Q74)","v":"'[ALPHA_Order form_2022_EN.xlsm]Order form'!$Q$74"},"Dropdown","Onto the steps (standard)","Auf Stützen in die Treppe","Dans les marches (standard)","En los escalones (estándar)","Sui gradini (standard)"]
[{"$f":"CELL(\"address\",'Order form'!Q74)","v":"'[ALPHA_Order form_2022_EN.xlsm]Order form'!$Q$74"},"Dropdown","Clamp fixing on the steps","Mit Klemmen an die Treppe","Pince de fixation sur les marches","Fijación de la abrazadera en los escalones","Morsetto di fissaggio sui gradini"]
[{"$f":"CELL(\"address\",'Order form'!Q74)","v":"'[ALPHA_Order form_2022_EN.xlsm]Order form'!$Q$74"},"Dropdown","On the wall with supporting pillars","Stützen mit Wandbefestigung","Sur le mur avec poteaux supportés","En la pared con pilares de apoyo","Sulla parete con pilastri di sostegno"]
[{"$f":"CELL(\"address\",'Order form'!B80)","v":"'[ALPHA_Order form_2022_EN.xlsm]Order form'!$B$80"},"Label","Additional information","Zusätzliche Information","Information additionnelle","Información Adicional","Informazioni aggiuntive"]
[{"$f":"CELL(\"address\",'Order form'!B89)","v":"'[ALPHA_Order form_2022_EN.xlsm]Order form'!$B$89"},"Label","Delivery date","Lieferdatum","Date de livraison","Fecha de entrega","Data di consegna"]
[{"$f":"CELL(\"address\",'Order form'!V89)","v":"'[ALPHA_Order form_2022_EN.xlsm]Order form'!$V$89"},"Label","Prepared by","Bearbeitet von","Preparé par","Preparado por","Preparato da"]
[{"$f":"CELL(\"address\",'Order form'!H89)","v":"'[ALPHA_Order form_2022_EN.xlsm]Order form'!$H$89"},"Label","Week","Woche","Semaine","Semana","Settimana"]
[{"$f":"CELL(\"address\",'Order form'!Q37)","v":"'[ALPHA_Order form_2022_EN.xlsm]Order form'!$Q$37"},"Dropdown","Classic_Line","Classic_Line","Classic_Line","Classic_Line","Classic_Line"]
[{"$f":"CELL(\"address\",'Order form'!Q37)","v":"'[ALPHA_Order form_2022_EN.xlsm]Order form'!$Q$37"},"Dropdown","Premium_Line_light_brown_wood","Premium_helles_Holz","Premium_bois_brun_clair","Premium_Line_madera_marrón_claro","Premium_Line_legno_marrone_chiaro"]
[{"$f":"CELL(\"address\",'Order form'!Q37)","v":"'[ALPHA_Order form_2022_EN.xlsm]Order form'!$Q$37"},"Dropdown","Premium_Line_dark_brown_wood","Premium_dunkles_Holz","Premium_bois_brun_fonce","Premium_Line_madera_marrón_oscuro","Premium_Line_legno_marrone_scuro"]
[{"$f":"CELL(\"address\",'Order form'!Q37)","v":"'[ALPHA_Order form_2022_EN.xlsm]Order form'!$Q$37"},"Dropdown","Exclusive_Line","Exklusive_Linie","Exklusive_Linie","Exclusive_Line","Exclusive_Line"]
[{"$f":"CELL(\"address\",'Order form'!AN37)","v":"'[ALPHA_Order form_2022_EN.xlsm]Order form'!$AN$37"},"RangeName","Classic_Line","Classic_Line","Classic_Line","Classic_Line","Classic_Line"]
[{"$f":"CELL(\"address\",'Order form'!AO37)","v":"'[ALPHA_Order form_2022_EN.xlsm]Order form'!$AO$37"},"RangeName","Premium_Line_light_brown_wood","Premium_helles_Holz","Premium_bois_brun_fonce","Premium_Line_madera_marrón_claro","Premium_Line_legno_marrone_chiaro"]
[{"$f":"CELL(\"address\",'Order form'!AP37)","v":"'[ALPHA_Order form_2022_EN.xlsm]Order form'!$AP$37"},"RangeName","Premium_Line_dark_brown_wood","Premium_dunkles_Holz","Premium_bois_brun_clair","Premium_Line_madera_marrón_oscuro","Premium_Line_legno_marrone_scuro"]
[{"$f":"CELL(\"address\",'Order form'!AQ37)","v":"'[ALPHA_Order form_2022_EN.xlsm]Order form'!$AQ$37"},"RangeName","Exclusive_Line","Exklusive_Linie","Exklusive_Line","Exclusive_Line","Exclusive_Line"]
[{"$f":"CELL(\"address\",'Order form'!AM36)","v":"'[ALPHA_Order form_2022_EN.xlsm]Order form'!$AM$36"},"Formula","=IF(Q36=\"Rail only\",\"Please enter type of unit and LE-number if available\", \"\")","=IF(Q36=\"Nur Schiene\",\"Geben Sie an um welches Fabrikat es sich handelt sowie die LE-Nummer falls vorhanden.\", \"\")","=IF(Q36=\"Rail seulement\",\"Veuillez indiquer la marque et le numéro LE si disponible\", \"\")","=IF(Q36\"Solo la guia tipo\",\"Indique la marca y el número LE si está disponible\", \"\")","=IF(Q36=\"Solo guida tipo\",\"Si prega di indicare la marca e il numero LE se disponibile\", \"\")"]
[{"$f":"CELL(\"address\",'Order form'!AM33)","v":"'[ALPHA_Order form_2022_EN.xlsm]Order form'!$AM$33"},"Formula","=IF(Q22=\"outdoor\",\"Please remember to chose surface treatment for outdoor\", \"\")","=IF(Q22=\"Im Außenbereich\",\"Bitte denken Sie daran, die Oberflächenbehandlung für den Außenbereich zu wählen.\", \"\")","=IF(Q22=\"Extérieur\",\"N'oubliez pas de choisir le traitement de surface pour l'extérieur\", \"\")","=IF(Q22=\"Al aire libre\",\"Por favor, recuerde elegir el tratamiento de superficie para exteriores\", \"\")","=IF(Q22=\"All'aperto\",\"Ricordati di scegliere il trattamento superficiale per esterni\", \"\")"]
[{"$f":"CELL(\"address\",'Order form'!AM37)","v":"'[ALPHA_Order form_2022_EN.xlsm]Order form'!$AM$37"},"Formula","=IF(Q22=\"outdoor\",\"For outdoor only Classic Line with Light gray upholstery is available\", \"\")","=IF(Q22=\"Im Außenbereich\",\"Für Montage im Freien ist nur der Sitz Classic Line mit Sitzfarbe Hellgrau zulässig\", \"\")","=IF(Q22=\"Extérieur\",\"Pour l'extérieur, uniquement la ligne Classic Line avec tapisserie gris clair est possible\", \"\")","=IF(Q22=\"Al aire libre\",\"Para instalacion al aire libre solo la Classic Line con tapicería gris claro es possible\", \"\")","=IF(Q22=\"All'aperto\",\"Per esterni è possibile soloil sedile \"Classic Line\" con tapezzeria Grigio chiaro\", \"\")"]
[{"$f":"CELL(\"address\",'Order form'!AM38)","v":"'[ALPHA_Order form_2022_EN.xlsm]Order form'!$AM$38"},"Formula","=IF(Q22=\"outdoor\",\"For outdoor only Classic Line with Light gray upholstery is available\", \"\")","=IF(Q22=\"Im Außenbereich\",\"Für Montage im Freien ist nur der Sitz Classic Line mit Sitzfarbe Hellgrau erhältlich\", \"\")","=IF(Q22=\"Extérieur\",\"Pour l'extérieur, uniquement la ligne Classic Line avec tapisserie gris clair est possible\", \"\")","=IF(Q22=\"Al aire libre\",\"Para instalacion al aire libre solo la Classic Line con tapicería gris claro es possible\", \"\")","=IF(Q22=\"All'aperto\",\"Per esterni è possibile soloil sedile \"Classic Line\" con tapezzeria Grigio chiaro\", \"\")"]
[{"$f":"CELL(\"address\",'Order form'!AM39)","v":"'[ALPHA_Order form_2022_EN.xlsm]Order form'!$AM$39"},"Formula","=IF(Q22=\"outdoor\",\"For outdoor the automatic footrest is not available\", \"\")","=IF(Q22=\"Im Außenbereich\",\"Für Montage im Freien ist das automatische Fussbrett nicht erhältlich\", \"\")","=IF(Q22=\"Extérieur\",\"Pour l'extérieur, le respose pied automatique n'est pas possible\", \"\")","=IF(Q22=\"Al aire libre\",\"Para instalacion al aire el reposapiés automatico no es possible\", \"\")","=IF(Q22=\"All'aperto\",\"Per esterni il poggiapiedi automatico non è possibile\", \"\")"]
[{"$f":"CELL(\"address\",'Order form'!AM40)","v":"'[ALPHA_Order form_2022_EN.xlsm]Order form'!$AM$40"},"Formula","=IF(Q22=\"outdoor\",\"For outdoor the automatic swivel seat is not available\", \"\")","=IF(Q22=\"Im Außenbereich\",\"Für Montage im Freien ist der automatische Drehsitz nicht erhältlich\", \"\")","=IF(Q22=\"Extérieur\",\"Pour l'extérieur, le siège automatique n'est pas possible\", \"\")","=IF(Q22=\"Al aire libre\",\"Para instalacion al aire libre el asiento automatico no es possible\", \"\")","=IF(Q22=\"All'aperto\",\"Per esterni il sedile automatico non è possibile\", \"\")"]
[{"$f":"CELL(\"address\",'Order form'!AM66)","v":"'[ALPHA_Order form_2022_EN.xlsm]Order form'!$AM$66"},"Formula","=IF(Q22=\"outdoor\",\"For outdoor the automatic hinge rail is not available\", \"\")","=IF(Q22=\"Im Außenbereich\",\"Für Montage im Freien ist die automatische Klappschiene nicht erhältlich\", \"\")","=IF(Q22=\"Extérieur\",\"Pour l'extérieur, le Rail relevable électrique n'est pas possible\", \"\")","=IF(Q22=\"Al aire libre\",\"Para instalacion al aire libre el Guia abatible no es possible\", \"\")","=IF(Q22=\"All'aperto\",\"Per esterni il Cerniera automatica non è possibile\", \"\")"]
[{"$f":"CELL(\"address\",'Order form'!AM43)","v":"'[ALPHA_Order form_2022_EN.xlsm]Order form'!$AM$43"},"Formula","=IF(Q43=\"Ergo-Joystick (special)\",\"Only available for Classic and Premium Line\", \"\")","=IF(Q43=\"Ergo-Joystick (Spezial)\",\"Nur für Classic und Premium Line erhältlich\", \"\")","=IF(Q43=\"Ergo-Joystick (special)\",\"Disponible uniquement pour les lignes Classic et Premium\", \"\")","=IF(Q43=\"Ergo-Joystick (special)\",\"Sólo disponible para la Línea Clásica y Premium\", \"\")","=IF(Q43=\"Ergo-Joystick (special)\",\"Disponibile solo per la linea Classic e Premium\", \"\")"]

{"sheet":"LangBackup","index":3,"n_rows":164,"n_cols":5,"rows_kept":164,"cut":false,"hidden":true,"merged":[]}
["Cell","Type","English","Deutsch","French"]
["Q3","Label","ALPHA stairlift","Alpha Treppenlift"]
["Q4","Label","Order form","Bestellformular","Bon de commande"]
["D3","Label","Dimension No.","Abmessung Nr.","Numéro de dimension"]
["D5","Label","Language","Sprache","La langue"]
["AD3","Label","Date:","Datum:","l' date"]
["AD4","Label","Version:","Version:","Version"]
["P6","Label","Distributor: (always fill out)","Händler: (immer ausfüllen)","Distributeur: (remplissez toujours)"]
["AB6","Label","Delivery address: (always fill out)","Lieferadresse: (immer ausfüllen)","Adresse de livraison: (remplissez toujours)"]
["P7","Label","Company:","Firma:","Enterprise"]
["B7","Label","Company:","Firma:","Enterprise"]
["P9","Label","Address","Anschrift","Une robe"]
["AB9","Label","Address","Anschrift","Une robe"]
["P10","Label","Postcode","Postleitzahl","Code postal"]
["AB10","Label","Postcode","Postleitzahl","Code postal"]
["P11","Label","City","Stadt","Ville"]
["AB11","Label","City","Stadt","Ville"]
["P12","Label","Country","Land","le pays"]
["AB12","Label","Country","Land","le pays"]
["D23","Label","Installation location","Installationsort"]
["D24","Label","Installation side","Montageseite","Côté d'installation"]
["C17","Label","Pick up address for lifts: Spedition Englmayer, Wiesenstrasse 71, 4600 Wels, Austria","ABHOLADRESSE: Spedition Englmayer, Wiesenstrasse 71, 4600 Wels, Austria"]
["C19","Label","Production No.","Produktionsnummer"]
["I19","Label","Order reference name (or number)","Auftragsreferenz (Name oder Nummer)"]
["C22","Label","Rail specification","Schienenspezifikation"]
["D25","Label","Rail length in meters rounded","Schienenlänge (ungefähr in m)","Longueur du rail en mètres arrondis"]
["D26","Label","Lower stop","Untere Haltestelle","Arrêt inférieur"]
["D27","Label","Upper stop","Obere Haltestelle","Arrêt supérieur"]
["D28","Label","Number of 90° curves","Anzahl der 90° Kurven","Nombre de courbes à 90°"]
["D28","Label","Number of 180° curves","Anzahl der 180° Kurven","Nombre de courbes à 180°"]
["D30","Label","Number of special curves","Anzahl der Spezialkurven","Nombre de courbes spéciales"]
["D31","Label","Number of negative curves","Anzahl der Negativkurven"]
["D32","Label","Number of vertical bends","Number of vertical bends"]
["D33","Label","Number of intermediate stops","Anzahl der Zwischenhaltestellen"]
["D34","Label","Rail surface treatment","Schienenfarbe"]
["AD26","Formula","=IF(R26=\"straight start with bottom overrun\",\"mm from first step to end of chair\", \"\")","=IF(R26=\"Gerade mit horizontalem Auslauf\",\"mm von erster Stufe bis Ende Sitz\", \"\")"]
["AD27","Formula","=IF(R27=\"straight top overrun\",\"mm from last step to end of chair\", \"\")","=IF(R27=\"Gerader Überlauf\",\"mm von letzter Stufe bis Ende Sitz\", \"\")"]
["R23","Dropdown","Indoor","Innen"]
["R23","Dropdown","Outdoor","Im Außenbereich"]
["R24","Dropdown","Left","Links","La gauche"]
["R24","Dropdown","Right","Rechts","Droite"]
["R26","Dropdown","Straight","Gerade","Tout droit"]
["R26","Dropdown","Straight with steep start","Gerade mit Steilstart","Droit avec début raide"]
["R26","Dropdown","Straight start with bottom overrun","Gerade mit horizontalem Auslauf","Début droit avec dépassement du bas"]
["R26","Dropdown","90°","90°","90°"]
["R26","Dropdown","180°","180°","180°"]
["R26","Dropdown","Special curve","Spezialkurve","Courbe spéciale"]
["R27","Dropdown","Straight at last step","Gerade an letzter Stufe","Droit à la dernière étape"]
["R27","Dropdown","Straight top overrun","Gerader Überlauf","Débordement droit"]
["R27","Dropdown","90° on top landing","90° auf oberem Podest","Atterrissage supérieur à 90°"]
["R27","Dropdown","180° on top landing","180° auf oberem Podest","Atterrissage supérieur à 180°"]
["R27","Dropdown","Special curve on top landing","Spezialkurve auf oberem Podest","Courbe spéciale sur le palier supérieur"]
["R34","Dropdown","RAL 7035 (standard)","RAL 7035 (Standard)"]
["R34","Dropdown","special RAL","Spezial RAL"]
["R34","Dropdown","zinc + RAL 7035","Verzinkt + RAL 7035"]
["R34","Dropdown","zinc + special RAL","Verzinkt + spezial RAL"]
["C36","Label","Design specifications","Sitz Design Optionen","Les spécifications de conception"]
["D37","Label","Execution","Ausführung","Exécution"]
["D38","Label","Seat design type","Sitz Design Typ","Type de conception du siège"]
["D39","Label","Upholstery","Sitzfarbe","Tapisserie"]
["D40","Label","Automatic footrest folding","Automatisches Fußbrett","Repose-pied automatique"]
["D41","Label","Automatic seat swivel","Automatischer Drehsitz","Siège pivotant automatique"]
["D42","Label","Bigger armrest distance (+100mm)","Größere Distanz zwischen Armlehnen ","Plus grande distance d'accoudoir (+ 100mm)"]
["D43","Label","Joystick position side","Joystickposition","Position du joystick"]
["D44","Label","External landing controls (always radio)","Externe Landekontrollen (immer Radio)","Contrôles d'atterrissage externes (toujours radio)"]
["D45","Label","Type of key","Art des Schlüssels","Type de clé"]
["D46","Label","Total no. of external landing controls","Anzahl Fernbedienungen gesamt","Nombre total de contrôles d'atterrissage externes"]
["D47","Label","Postion of external controls","Stellung externer Kontrollen","Position des contrôles externes"]
["R37","Dropdown","Stairlift + rail (standard)","Kompletter Lift "]
["R37","Dropdown","Rail only","Nur Schiene"]
["AS39","Label","Blue","Blau","Bleu"]
["AS40","Label","Red","rot","rouge"]
["AS41","Label","Brown","Braun","marron"]
["AS42","Label","Green","Grün","vert"]
["AS43","Label","Beige","Beige","Beige"]
["AS44","Label","Light gray","Hellgrau","Gris clair"]
["AT39","Label","Marine blue","Marineblau","Bleu marine"]
["AT40","Label","Emerald green","Smaragdgrün","vert émeraude"]
["AT41","Label","Ruby red","Rubinrot","rouge rubis"]
["AT42","Label","Pearl white","Perlweiss","Perle blanche"]
["AT43","Label","Walnut brown","Walnussbraun","Marron"]
["AT44","Label","Safran yellow","Safran-Gelb","Jaune safran"]
["AU39","Label","Marine blue","Marineblau","Bleu marine"]
["AU40","Label","Emerald green","Smaragdgrün","vert émeraude"]
["AU41","Label","Ruby red","Rubinrot","rouge rubis"]
["AU42","Label","Pearl white","Perlweiss","Perle blanche"]
["AU43","Label","Walnut brown","Walnussbraun","Marron"]
["AU44","Label","Safran yellow","Safran-Gelb","Jaune safran"]
["AV39","Label","Olive (woven textile)","Olive (gewebtes Textil)","Olive (textile tissé)"]
["AV40","Label","Granite (woven textile)","Granit (gewebtes Textil)","Granite (textile tissé)"]
["AV41","Label","Bordeaux (woven textile)","Bordeaux (gewebtes Textil)","Bordeaux (textile tissé)"]
["AV42","Label","Marble (woven textile)","Marmor (gewebtes Textil)","Marbre (textile tissé)"]
["AV43","Label","Ivory (woven textile)","Elfenbein (gewebtes Textil)","Ivoire (textile tissé)"]
["AV44","Label","Basalt (artificial leather)","Basalt (Kunstleder)","Basalte (cuir artificiel)"]
["AV45","Label","Burgundy (artificial leather)","Burgund (Kunstleder)","Bourgogne (cuir artificiel)"]
["AV46","Label","Mocha (artificial leather)","Mokka (Kunstleder)","Moka (cuir artificiel)"]
["R39","Switch","Blue","Blau","Bleu"]
["R39","Switch","Red","rot","rouge"]
["R39","Switch","Brown","Braun","marron"]
["R39","Switch","Green","Grün","vert"]
["R39","Switch","Beige","Beige","Beige"]
["R39","Switch","Light gray","Hellgrau","Gris clair"]
["R39","Switch","Marine blue","Marineblau","Bleu marine"]
["R39","Switch","Emerald green","Smaragdgrün","vert émeraude"]
["R39","Switch","Ruby red","Rubinrot","rouge rubis"]
["R39","Switch","Pearl white","Perlweiss","Perle blanche"]
["R39","Switch","Walnut brown","Walnussbraun","Marron"]
["R39","Switch","Safran yellow","Safran-Gelb","Jaune safran"]
["R39","Switch","Olive (woven textile)","Olive (gewebtes Textil)","Olive (textile tissé)"]
["R39","Switch","Granite (woven textile)","Granit (gewebtes Textil)","Granite (textile tissé)"]
["R39","Switch","Bordeaux (woven textile)","Bordeaux (gewebtes Textil)","Bordeaux (textile tissé)"]
["R39","Switch","Marble (woven textile)","Marmor (gewebtes Textil)","Marbre (textile tissé)"]
["R39","Switch","Ivory (woven textile)","Elfenbein (gewebtes Textil)","Ivoire (textile tissé)"]
["R39","Switch","Basalt (artificial leather)","Basalt (Kunstleder)","Basalte (cuir artificiel)"]
["R39","Switch","Burgundy (artificial leather)","Burgund (Kunstleder)","Bourgogne (cuir artificiel)"]
["R39","Switch","Mocha (artificial leather)","Mokka (Kunstleder)","Moka (cuir artificiel)"]
["R40","Dropdown","Yes","Ja","Oui"]
["R40","Dropdown","No","Nein","Non"]
["R41","Dropdown","Yes","Ja","Oui"]
["R41","Dropdown","No","Nein","Non"]
["R42","Dropdown","Yes","Ja","Oui"]
["R42","Dropdown","No","Nein","Non"]
["R43","Dropdown","On downstairs side (standard)","Talseitig","Côté bas (standard)"]
["R43","Dropdown","On upstairs side (optional)","Bergseitig","Du côté de l'étage (facultatif)"]
["R44","Dropdown","Membrane keypad (standard)","Folientastatur (Standard)","Clavier à membrane (standard)"]
["R44","Dropdown","Big push buttons","Großer Taster","Gros boutons poussoirs"]
["R45","Dropdown","Without key","Ohne Schlüssel","Sans clé"]
["R45","Dropdown","Mini key","Minischlüssel","Mini clé"]
["R47","Dropdown","Handset","Handkassette","Combiné"]
["R47","Dropdown","Wall-mounted","Wantmontiert","Mural"]
["R47","Dropdown","Pillar-mounted","Stützenmontiert","Monté sur pilier"]
["C49","Label","Further options","Zusätzliche Optionen"]
["D50","Label","Plastic cover for outdoor stairlift","Plastic cover for outdoor stairlift"]
["D54","Label","Warranty time","Warranty time"]
["D55","Label","Stainless steel label","Stainless steel label"]
["D56","Label","Transport box","Transportbox"]
["D59","Label","Drawing time urgency in working days","Drawing time urgency in days"]
["D60","Label","Service display","Service display"]
["D61","Label","Plastic cover for footplates","Kunststoffabdeckung für Stützenfüße"]
["D62","Label","Stand-up seat version (up to 120 kg)","Variante Stehsitz (bis zu 120 kg)"]
["D63","Label","Higher loading capacity of 145kg","Höhere Traglast bis 145 kg"]
["D64","Label","Optional user dimensions","Benutzergröße (optional)"]
["D65","Label","Extra heavy batteries","Extra starke Batterien"]
["R64","Label","Height from seat to head:","Maß Sitz bis Kopf"]
["AC64","Label","Distance from back to knees:","Maß Rücken bis Knie"]
["R50","Dropdown","Yes","Ja","Oui"]
[{"$f":"A146","v":"R50"},"Dropdown","No","Nein","Non"]
["R60","Dropdown","Yes","Ja","Oui"]
[{"$f":"A148","v":"R60"},"Dropdown","No","Nein","Non"]
["R61","Dropdown","Yes","Ja","Oui"]
[{"$f":"A150","v":"R61"},"Dropdown","No","Nein","Non"]
["R62","Dropdown","Yes","Ja","Oui"]
[{"$f":"A152","v":"R62"},"Dropdown","No","Nein","Non"]
["R63","Dropdown","Yes","Ja","Oui"]
[{"$f":"A154","v":"R63"},"Dropdown","No","Nein","Non"]
["C67","Label","Supporting structure","Art der Befestigung"]
["D68","Label","Fixing of the rails","Fixierung der Schiene"]
["R68","Dropdown","into the steps (standard)","Auf Stützen in die Treppe"]
["R68","Dropdown","clamp fixing on the steps","Mit Klemmen an die Treppe"]
["R68","Dropdown","on the wall with supporting pillars","An die Wand"]
["C72","Label","Additional information","Zusätzliche Information"]
["C81","Label","Delivery date","Lieferdatim:"]
["W81","Label","Prepared by","Bearbeitet von:"]
["K81","Label","Week","Woche","la semaine"]

{"sheet":"Setup","index":4,"n_rows":1,"n_cols":2,"rows_kept":1,"cut":false,"hidden":true,"merged":[]}
["Language","Français"]